Workbook

Sheet home
A1: \ | O1: swl
B3: DATI STAZIONE | G3: A.R.M.I. ITALIAN NAVY AWARD
B4: Nominativo | D4: =LOG!M2 -> 
B5: Operatore | D5: =LOG!M3 ->  | H5: =new!B2 -> SHIP RADIO STATION | N5: =new!D3 -> 2016
B6: Categoria | C6: =LOG!L4 -> SWL
C7: Indirizzo e-mail
D8: =IF(C8="","manca dato!!!!","") -> manca dato!!!! | G8: =new!N28 -> dalle 0001 UTC sabato 10 Settembre
C9: invio diploma cartaceo a: | G9: =new!N29 -> alle 2359 UTC domenica 25 Settembre
B10: Cognome
B11: Nome
B12: Indirizzo
B13: Cap | D13: =IF(OR(C10="",C11="",C12="",C13="",C14="",C15=""),"manca uno o piu' dati","") -> manca uno o piu' dati
B14: Città
B15: Nazione
B16: NOTE
C34: =IF(LOG!M4="","",LOG!M4) -> SOMMA PARZIALE= 0
C35: =IF(C34="","","(STAZIONI = "&LOG!R23&"/moltiplicatore = "&LOG!Z24&")") -> (STAZIONI = 10/moltiplicatore = 0)
C36: =IF(C34="","",LOG!M5) -> SOMMA TOTALE= 0

Sheet LOG
F1: =home!H5 -> SHIP RADIO STATION | K1: =home!N5 -> 2016 | O1: swl | P1: se è SWL | S1: NAVAL | X1: =#REF! -> 
K2: Nominativo | L2: =IF(home!C4="","",home!C4) ->  | M2: =IF(N54,"",N53) ->  | S2: INDIPENDENT | X2: =#REF! -> 
K3: Operatore | M3: =IF(N64,"",IF(N63=0,"<----scrivi (write)",N63)) ->  | N3: =SUMIF(J5:J5993,"<>#N/D") -> 0 | S3: SWL
B4: a | K4: Categoria | L4: =IF(M2<>"",S1,IF(AND(O1="swl",M2=""),S3,IF(AND(M2="",L2=""),"",S2))) -> SWL | M4: ="SOMMA PARZIALE= "&N5 -> SOMMA PARZIALE= 0 | W4: cerca B1-E5000
A5: QSO# | B5: DATA | C5: UTC | D5: BANDA | E5: FREQ. | F5: MODE | G5: RST | H5: CALL | I5: NAVAL # | J5: PUNTI | K5: OPERATORE (leggi commento) | L5: N O T E | M5: =IF(Z24=0,"SOMMA TOTALE= "&N5,"SOMMA TOTALE= "&N5*Z24) -> SOMMA TOTALE= 0 | N5: =SUM(N3:N4) -> 0 | Q5: ALL STATION | R5: 2016 STATION | T5: Punti Stazione | V5: stazione indipendente | W5: fino a riga 6000 | Y5: moltiplicatore
A6: 1 | I6: =IF(ISERROR(VLOOKUP(H6,Database!$B$1:$C$5908,2,FALSE)),"",VLOOKUP(H6,Database!$B$1:$C$5908,2,FALSE)) ->  | J6: =IF(V6=1,1,IF(AND(T6=0,F6="SSB",V6<>""),2,IF(AND(T6=0,F6="FM",V6<>""),2,IF(AND(T6=0,F6="DIGI",V6<>""),3,IF(AND(T6=0,F6="CW",V6<>""),5,IF(H6="-","",T6)))))) ->  | K6: =IF(H6="-","",IF(AND(H6<>"",X6=TRUE),"INDIPENDENT",IF(W6=0,"SCRIVI NOME NELLE NOTE",W6))) ->  | P6: 1 | Q6: II0ICH | R6: =new!J19 -> II2IAOG | T6: =IF(H6="","",IF(H6=$R$6,25,IF(OR(H6=$R$7,H6=$R$8,H6=$R$9,H6=$R$10,H6=$R$11,H6=$R$12,H6=$R$13,H6=$R$14,H6=$R$15,H6=$R$16,H6=$R$17,H6=$R$18,H6=$R$19,H6=$R$20,H6=$R$21,H6=$R$22,H6=$R$23),15,0))) ->  | U6: =ISERROR(I6) -> FALSE | V6: =IF(H6="-","",IF(AND(T6=0,U6=FALSE,I6=""),1,2)) -> 2 | W6: =VLOOKUP(H6,Database!$B$1:$E$4891,4,FALSE) ->  | X6: =ISERROR(W6) -> TRUE | Y6: =COUNTIF(H$6:H$6000,R6) -> 0 | Z6: =IF(Y6>=1,1,0) -> 0
A7: =A6+1 -> 2 | I7: =IF(ISERROR(VLOOKUP(H7,Database!$B$1:$C$5908,2,FALSE)),"",VLOOKUP(H7,Database!$B$1:$C$5908,2,FALSE)) ->  | J7: =IF(V7=1,1,IF(AND(T7=0,F7="SSB",V7<>""),2,IF(AND(T7=0,F7="FM",V7<>""),2,IF(AND(T7=0,F7="DIGI",V7<>""),3,IF(AND(T7=0,F7="CW",V7<>""),5,IF(H7="-","",T7)))))) ->  | K7: =IF(H7="-","",IF(AND(H7<>"",X7=TRUE),"INDIPENDENT",IF(W7=0,"SCRIVI NOME NELLE NOTE",W7))) ->  | N7: SSB | P7: 2 | Q7: II0ICV | R7: =new!J20 -> II0IADC | T7: =IF(H7="","",IF(H7=$R$6,25,IF(OR(H7=$R$7,H7=$R$8,H7=$R$9,H7=$R$10,H7=$R$11,H7=$R$12,H7=$R$13,H7=$R$14,H7=$R$15,H7=$R$16,H7=$R$17,H7=$R$18,H7=$R$19,H7=$R$20,H7=$R$21,H7=$R$22,H7=$R$23),15,0))) ->  | U7: =ISERROR(I7) -> FALSE | V7: =IF(H7="-","",IF(AND(T7=0,U7=FALSE,I7=""),1,2)) -> 2 | W7: =VLOOKUP(H7,Database!$B$1:$E$4891,4,FALSE) ->  | X7: =ISERROR(W7) -> TRUE | Y7: =COUNTIF(H$6:H$6000,R7) -> 0 | Z7: =IF(Y7>=1,1,0) -> 0
A8: 3 | I8: =IF(ISERROR(VLOOKUP(H8,Database!$B$1:$C$5908,2,FALSE)),"",VLOOKUP(H8,Database!$B$1:$C$5908,2,FALSE)) ->  | N8: DIGI | P8: 3 | Q8: II0IDP | R8: =new!J21 -> II0IATO | U8: FALSE | V8: =IF(H8="-","",IF(AND(T8=0,U8=FALSE,I8=""),1,2)) -> 2 | W8: =VLOOKUP(H8,Database!$B$1:$E$4891,4,FALSE) ->  | X8: TRUE | Y8: =COUNTIF(H$6:H$6000,R8) -> 0 | Z8: 0
A9: 4 | I9: =IF(ISERROR(VLOOKUP(H9,Database!$B$1:$C$5908,2,FALSE)),"",VLOOKUP(H9,Database!$B$1:$C$5908,2,FALSE)) ->  | N9: CW | P9: 4 | Q9: II0IDR | R9: =new!J22 -> II1IAME | U9: FALSE | V9: 2 | W9: =VLOOKUP(H9,Database!$B$1:$E$4891,4,FALSE) ->  | X9: TRUE | Y9: 0 | Z9: 0
A10: 5 | I10: =IF(ISERROR(VLOOKUP(H10,Database!$B$1:$C$5908,2,FALSE)),"",VLOOKUP(H10,Database!$B$1:$C$5908,2,FALSE)) ->  | P10: 5 | Q10: II0IGU | R10: =new!J23 -> II5IAFR | U10: FALSE | V10: 2 | W10: =VLOOKUP(H10,Database!$B$1:$E$4891,4,FALSE) ->  | X10: TRUE | Y10: 0 | Z10: 0
A11: 6 | I11: =IF(ISERROR(VLOOKUP(H11,Database!$B$1:$C$5908,2,FALSE)),"",VLOOKUP(H11,Database!$B$1:$C$5908,2,FALSE)) ->  | P11: 6 | Q11: II1ICS | R11: =new!J24 -> II8IHBC | U11: FALSE | V11: 2 | W11: =VLOOKUP(H11,Database!$B$1:$E$4891,4,FALSE) ->  | X11: TRUE | Y11: 0 | Z11: 0
A12: 7 | I12: =IF(ISERROR(VLOOKUP(H12,Database!$B$1:$C$5908,2,FALSE)),"",VLOOKUP(H12,Database!$B$1:$C$5908,2,FALSE)) ->  | P12: 7 | Q12: II1IGG | R12: =new!J25 -> II9IABA | U12: FALSE | V12: 2 | W12: =VLOOKUP(H12,Database!$B$1:$E$4891,4,FALSE) ->  | X12: TRUE | Y12: 0 | Z12: 0
A13: 8 | I13: =IF(ISERROR(VLOOKUP(H13,Database!$B$1:$C$5908,2,FALSE)),"",VLOOKUP(H13,Database!$B$1:$C$5908,2,FALSE)) ->  | N13: =COUNTIF($F$6:$F$5993,N7) -> 0 | P13: 8 | Q13: II3ICZ | R13: =new!J26 -> II9IACR | U13: FALSE | V13: 2 | W13: =VLOOKUP(H13,Database!$B$1:$E$4891,4,FALSE) ->  | X13: TRUE | Y13: 0 | Z13: 0
A14: 9 | I14: =IF(ISERROR(VLOOKUP(H14,Database!$B$1:$C$5908,2,FALSE)),"",VLOOKUP(H14,Database!$B$1:$C$5908,2,FALSE)) ->  | N14: =COUNTIF($F$6:$F$5993,N8) -> 0 | P14: 9 | Q14: II5IDK | R14: =new!J27 -> II9IHPM | U14: FALSE | V14: 2 | W14: =VLOOKUP(H14,Database!$B$1:$E$4891,4,FALSE) ->  | X14: TRUE | Y14: 0 | Z14: 0
A15: 10 | I15: =IF(ISERROR(VLOOKUP(H15,Database!$B$1:$C$5908,2,FALSE)),"",VLOOKUP(H15,Database!$B$1:$C$5908,2,FALSE)) ->  | N15: =COUNTIF($F$6:$F$5993,N9) -> 0 | P15: 10 | Q15: II6ICA | R15: =new!J28 -> II5IHLP | U15: FALSE | V15: 2 | W15: =VLOOKUP(H15,Database!$B$1:$E$4891,4,FALSE) ->  | X15: TRUE | Y15: 0 | Z15: 0
A16: 11 | I16: =IF(ISERROR(VLOOKUP(H16,Database!$B$1:$C$5908,2,FALSE)),"",VLOOKUP(H16,Database!$B$1:$C$5908,2,FALSE)) ->  | P16: 11 | Q16: II7ICE | R16: =new!J29 -> 0 | U16: FALSE | V16: 2 | W16: =VLOOKUP(H16,Database!$B$1:$E$4891,4,FALSE) ->  | X16: TRUE | Y16: 0 | Z16: 0
A17: 12 | I17: =IF(ISERROR(VLOOKUP(H17,Database!$B$1:$C$5908,2,FALSE)),"",VLOOKUP(H17,Database!$B$1:$C$5908,2,FALSE)) ->  | P17: 12 | Q17: II7ICT | R17: =new!J30 -> 0 | U17: FALSE | V17: 2 | W17: =VLOOKUP(H17,Database!$B$1:$E$4891,4,FALSE) ->  | X17: TRUE | Y17: 0 | Z17: 0
A18: 13 | I18: =IF(ISERROR(VLOOKUP(H18,Database!$B$1:$C$5908,2,FALSE)),"",VLOOKUP(H18,Database!$B$1:$C$5908,2,FALSE)) ->  | P18: 13 | Q18: II8ICN | R18: =new!J31 -> 0 | U18: FALSE | V18: 2 | W18: =VLOOKUP(H18,Database!$B$1:$E$4891,4,FALSE) ->  | X18: TRUE | Y18: 0 | Z18: 0
A19: 14 | I19: =IF(ISERROR(VLOOKUP(H19,Database!$B$1:$C$5908,2,FALSE)),"",VLOOKUP(H19,Database!$B$1:$C$5908,2,FALSE)) ->  | P19: 14 | Q19: II9ICB | R19: =new!J32 -> 0 | U19: FALSE | V19: 2 | W19: =VLOOKUP(H19,Database!$B$1:$E$4891,4,FALSE) ->  | X19: TRUE | Y19: 0 | Z19: 0
A20: 15 | I20: =IF(ISERROR(VLOOKUP(H20,Database!$B$1:$C$5908,2,FALSE)),"",VLOOKUP(H20,Database!$B$1:$C$5908,2,FALSE)) ->  | N20: 80 | P20: 15 | Q20: II9ICF | R20: =new!J33 -> 0 | U20: FALSE | V20: 2 | W20: =VLOOKUP(H20,Database!$B$1:$E$4891,4,FALSE) ->  | X20: TRUE | Y20: 0 | Z20: 0
A21: 16 | I21: =IF(ISERROR(VLOOKUP(H21,Database!$B$1:$C$5908,2,FALSE)),"",VLOOKUP(H21,Database!$B$1:$C$5908,2,FALSE)) ->  | N21: 40 | P21: 16 | Q21: II9IGA | R21: =new!J34 -> 0 | U21: FALSE | V21: 2 | W21: =VLOOKUP(H21,Database!$B$1:$E$4891,4,FALSE) ->  | X21: TRUE | Y21: 0 | Z21: 0
A22: 17 | I22: =IF(ISERROR(VLOOKUP(H22,Database!$B$1:$C$5908,2,FALSE)),"",VLOOKUP(H22,Database!$B$1:$C$5908,2,FALSE)) ->  | N22: 30 | P22: 17 | Q22: II9IGJ | R22: =new!J35 -> 0 | U22: FALSE | V22: 2 | W22: =VLOOKUP(H22,Database!$B$1:$E$4891,4,FALSE) ->  | X22: TRUE | Y22: 0 | Z22: 0
A23: 18 | I23: =IF(ISERROR(VLOOKUP(H23,Database!$B$1:$C$5908,2,FALSE)),"",VLOOKUP(H23,Database!$B$1:$C$5908,2,FALSE)) ->  | N23: 20 | Q23: stazioni N. | R23: =COUNTA(R6:R22)-COUNT(R6:R22) -> 10 | U23: FALSE | V23: 2 | W23: =VLOOKUP(H23,Database!$B$1:$E$4891,4,FALSE) ->  | X23: TRUE | Y23: 0 | Z23: 0
A24: 19 | I24: =IF(ISERROR(VLOOKUP(H24,Database!$B$1:$C$5908,2,FALSE)),"",VLOOKUP(H24,Database!$B$1:$C$5908,2,FALSE)) ->  | N24: 17 | U24: FALSE | V24: 2 | W24: =VLOOKUP(H24,Database!$B$1:$E$4891,4,FALSE) ->  | X24: TRUE | Y24: totale | Z24: =SUM(Z6:Z23) -> 0
A25: 20 | I25: =IF(ISERROR(VLOOKUP(H25,Database!$B$1:$C$5908,2,FALSE)),"",VLOOKUP(H25,Database!$B$1:$C$5908,2,FALSE)) ->  | N25: 15 | U25: FALSE | V25: 2 | W25: =VLOOKUP(H25,Database!$B$1:$E$4891,4,FALSE) ->  | X25: TRUE
A26: 21 | I26: =IF(ISERROR(VLOOKUP(H26,Database!$B$1:$C$5908,2,FALSE)),"",VLOOKUP(H26,Database!$B$1:$C$5908,2,FALSE)) ->  | N26: 12 | U26: FALSE | V26: 2 | W26: =VLOOKUP(H26,Database!$B$1:$E$4891,4,FALSE) ->  | X26: TRUE
A27: 22 | I27: =IF(ISERROR(VLOOKUP(H27,Database!$B$1:$C$5908,2,FALSE)),"",VLOOKUP(H27,Database!$B$1:$C$5908,2,FALSE)) ->  | N27: 10 | U27: FALSE | V27: 2 | W27: =VLOOKUP(H27,Database!$B$1:$E$4891,4,FALSE) ->  | X27: TRUE
A28: 23 | I28: =IF(ISERROR(VLOOKUP(H28,Database!$B$1:$C$5908,2,FALSE)),"",VLOOKUP(H28,Database!$B$1:$C$5908,2,FALSE)) ->  | U28: FALSE | V28: 2 | W28: =VLOOKUP(H28,Database!$B$1:$E$4891,4,FALSE) ->  | X28: TRUE
A29: 24 | I29: =IF(ISERROR(VLOOKUP(H29,Database!$B$1:$C$5908,2,FALSE)),"",VLOOKUP(H29,Database!$B$1:$C$5908,2,FALSE)) ->  | U29: FALSE | V29: 2 | W29: =VLOOKUP(H29,Database!$B$1:$E$4891,4,FALSE) ->  | X29: TRUE
A30: 25 | I30: =IF(ISERROR(VLOOKUP(H30,Database!$B$1:$C$5908,2,FALSE)),"",VLOOKUP(H30,Database!$B$1:$C$5908,2,FALSE)) ->  | U30: FALSE | V30: 2 | W30: =VLOOKUP(H30,Database!$B$1:$E$4891,4,FALSE) ->  | X30: TRUE
A31: 26 | I31: =IF(ISERROR(VLOOKUP(H31,Database!$B$1:$C$5908,2,FALSE)),"",VLOOKUP(H31,Database!$B$1:$C$5908,2,FALSE)) ->  | U31: FALSE | V31: 2 | W31: =VLOOKUP(H31,Database!$B$1:$E$4891,4,FALSE) ->  | X31: TRUE
A32: 27 | I32: =IF(ISERROR(VLOOKUP(H32,Database!$B$1:$C$5908,2,FALSE)),"",VLOOKUP(H32,Database!$B$1:$C$5908,2,FALSE)) ->  | N32: =VALUE(#N/A=0) ->  | U32: FALSE | V32: 2 | W32: =VLOOKUP(H32,Database!$B$1:$E$4891,4,FALSE) ->  | X32: TRUE
A33: 28 | I33: =IF(ISERROR(VLOOKUP(H33,Database!$B$1:$C$5908,2,FALSE)),"",VLOOKUP(H33,Database!$B$1:$C$5908,2,FALSE)) ->  | N33: =ISERROR(N32) -> TRUE | U33: FALSE | V33: 2 | W33: =VLOOKUP(H33,Database!$B$1:$E$4891,4,FALSE) ->  | X33: TRUE
A34: 29 | I34: =IF(ISERROR(VLOOKUP(H34,Database!$B$1:$C$5908,2,FALSE)),"",VLOOKUP(H34,Database!$B$1:$C$5908,2,FALSE)) ->  | N34: =IF(N33,"",N32) ->  | U34: FALSE | V34: 2 | W34: =VLOOKUP(H34,Database!$B$1:$E$4891,4,FALSE) ->  | X34: TRUE
A35: 30 | I35: =IF(ISERROR(VLOOKUP(H35,Database!$B$1:$C$5908,2,FALSE)),"",VLOOKUP(H35,Database!$B$1:$C$5908,2,FALSE)) ->  | N35: =COUNTIF($D$6:$D$5993,N20) -> 0 | U35: FALSE | V35: 2 | W35: =VLOOKUP(H35,Database!$B$1:$E$4891,4,FALSE) ->  | X35: TRUE
A36: 31 | I36: =IF(ISERROR(VLOOKUP(H36,Database!$B$1:$C$5908,2,FALSE)),"",VLOOKUP(H36,Database!$B$1:$C$5908,2,FALSE)) ->  | N36: 0 | U36: FALSE | V36: 2 | W36: =VLOOKUP(H36,Database!$B$1:$E$4891,4,FALSE) ->  | X36: TRUE
A37: 32 | I37: =IF(ISERROR(VLOOKUP(H37,Database!$B$1:$C$5908,2,FALSE)),"",VLOOKUP(H37,Database!$B$1:$C$5908,2,FALSE)) ->  | N37: 0 | U37: FALSE | V37: 2 | W37: =VLOOKUP(H37,Database!$B$1:$E$4891,4,FALSE) ->  | X37: TRUE
A38: 33 | I38: =IF(ISERROR(VLOOKUP(H38,Database!$B$1:$C$5908,2,FALSE)),"",VLOOKUP(H38,Database!$B$1:$C$5908,2,FALSE)) ->  | N38: 0 | U38: FALSE | V38: 2 | W38: =VLOOKUP(H38,Database!$B$1:$E$4891,4,FALSE) ->  | X38: TRUE
A39: 34 | I39: =IF(ISERROR(VLOOKUP(H39,Database!$B$1:$C$5908,2,FALSE)),"",VLOOKUP(H39,Database!$B$1:$C$5908,2,FALSE)) ->  | N39: 0 | U39: FALSE | V39: 2 | W39: =VLOOKUP(H39,Database!$B$1:$E$4891,4,FALSE) ->  | X39: TRUE
A40: 35 | I40: =IF(ISERROR(VLOOKUP(H40,Database!$B$1:$C$5908,2,FALSE)),"",VLOOKUP(H40,Database!$B$1:$C$5908,2,FALSE)) ->  | N40: 0 | U40: FALSE | V40: 2 | W40: =VLOOKUP(H40,Database!$B$1:$E$4891,4,FALSE) ->  | X40: TRUE
A41: 36 | I41: =IF(ISERROR(VLOOKUP(H41,Database!$B$1:$C$5908,2,FALSE)),"",VLOOKUP(H41,Database!$B$1:$C$5908,2,FALSE)) ->  | N41: 0 | U41: FALSE | V41: 2 | W41: =VLOOKUP(H41,Database!$B$1:$E$4891,4,FALSE) ->  | X41: TRUE
A42: 37 | I42: =IF(ISERROR(VLOOKUP(H42,Database!$B$1:$C$5908,2,FALSE)),"",VLOOKUP(H42,Database!$B$1:$C$5908,2,FALSE)) ->  | N42: 0 | U42: FALSE | V42: 2 | W42: =VLOOKUP(H42,Database!$B$1:$E$4891,4,FALSE) ->  | X42: TRUE
A43: 38 | I43: =IF(ISERROR(VLOOKUP(H43,Database!$B$1:$C$5908,2,FALSE)),"",VLOOKUP(H43,Database!$B$1:$C$5908,2,FALSE)) ->  | N43: 0 | U43: FALSE | V43: 2 | W43: =VLOOKUP(H43,Database!$B$1:$E$4891,4,FALSE) ->  | X43: TRUE
A44: 39 | I44: =IF(ISERROR(VLOOKUP(H44,Database!$B$1:$C$5908,2,FALSE)),"",VLOOKUP(H44,Database!$B$1:$C$5908,2,FALSE)) ->  | N44: 0 | U44: FALSE | V44: 2 | W44: =VLOOKUP(H44,Database!$B$1:$E$4891,4,FALSE) ->  | X44: TRUE
A45: 40 | I45: =IF(ISERROR(VLOOKUP(H45,Database!$B$1:$C$5908,2,FALSE)),"",VLOOKUP(H45,Database!$B$1:$C$5908,2,FALSE)) ->  | U45: FALSE | V45: 2 | W45: =VLOOKUP(H45,Database!$B$1:$E$4891,4,FALSE) ->  | X45: TRUE
A46: 41 | I46: =IF(ISERROR(VLOOKUP(H46,Database!$B$1:$C$5908,2,FALSE)),"",VLOOKUP(H46,Database!$B$1:$C$5908,2,FALSE)) ->  | U46: FALSE | V46: 2 | W46: =VLOOKUP(H46,Database!$B$1:$E$4891,4,FALSE) ->  | X46: TRUE
A47: 42 | I47: =IF(ISERROR(VLOOKUP(H47,Database!$B$1:$C$5908,2,FALSE)),"",VLOOKUP(H47,Database!$B$1:$C$5908,2,FALSE)) ->  | N47: =SUM(H6:H58) -> 0 | U47: FALSE | V47: 2 | W47: =VLOOKUP(H47,Database!$B$1:$E$4891,4,FALSE) ->  | X47: TRUE
A48: 43 | I48: =IF(ISERROR(VLOOKUP(H48,Database!$B$1:$C$5908,2,FALSE)),"",VLOOKUP(H48,Database!$B$1:$C$5908,2,FALSE)) ->  | U48: FALSE | V48: 2 | W48: =VLOOKUP(H48,Database!$B$1:$E$4891,4,FALSE) ->  | X48: TRUE
A49: 44 | I49: =IF(ISERROR(VLOOKUP(H49,Database!$B$1:$C$5908,2,FALSE)),"",VLOOKUP(H49,Database!$B$1:$C$5908,2,FALSE)) ->  | U49: FALSE | V49: 2 | W49: =VLOOKUP(H49,Database!$B$1:$E$4891,4,FALSE) ->  | X49: TRUE
A50: 45 | I50: =IF(ISERROR(VLOOKUP(H50,Database!$B$1:$C$5908,2,FALSE)),"",VLOOKUP(H50,Database!$B$1:$C$5908,2,FALSE)) ->  | U50: FALSE | V50: 2 | W50: =VLOOKUP(H50,Database!$B$1:$E$4891,4,FALSE) ->  | X50: TRUE
A51: 46 | I51: =IF(ISERROR(VLOOKUP(H51,Database!$B$1:$C$5908,2,FALSE)),"",VLOOKUP(H51,Database!$B$1:$C$5908,2,FALSE)) ->  | U51: FALSE | V51: 2 | W51: =VLOOKUP(H51,Database!$B$1:$E$4891,4,FALSE) ->  | X51: TRUE
A52: 47 | I52: =IF(ISERROR(VLOOKUP(H52,Database!$B$1:$C$5908,2,FALSE)),"",VLOOKUP(H52,Database!$B$1:$C$5908,2,FALSE)) ->  | U52: FALSE | V52: 2 | W52: =VLOOKUP(H52,Database!$B$1:$E$4891,4,FALSE) ->  | X52: TRUE
A53: 48 | I53: =IF(ISERROR(VLOOKUP(H53,Database!$B$1:$C$5908,2,FALSE)),"",VLOOKUP(H53,Database!$B$1:$C$5908,2,FALSE)) ->  | N53: =VLOOKUP(L2,Database!$B$1:$C$4899,2,0) ->  | O53: cerca B-C | U53: FALSE | V53: 2 | W53: =VLOOKUP(H53,Database!$B$1:$E$4891,4,FALSE) ->  | X53: TRUE
A54: 49 | I54: =IF(ISERROR(VLOOKUP(H54,Database!$B$1:$C$5908,2,FALSE)),"",VLOOKUP(H54,Database!$B$1:$C$5908,2,FALSE)) ->  | N54: =ISERROR(N53) -> TRUE | U54: FALSE | V54: 2 | W54: =VLOOKUP(H54,Database!$B$1:$E$4891,4,FALSE) ->  | X54: TRUE
A55: 50 | I55: =IF(ISERROR(VLOOKUP(H55,Database!$B$1:$C$5908,2,FALSE)),"",VLOOKUP(H55,Database!$B$1:$C$5908,2,FALSE)) ->  | U55: FALSE | V55: 2 | W55: =VLOOKUP(H55,Database!$B$1:$E$4891,4,FALSE) ->  | X55: TRUE
A56: 51 | I56: =IF(ISERROR(VLOOKUP(H56,Database!$B$1:$C$5908,2,FALSE)),"",VLOOKUP(H56,Database!$B$1:$C$5908,2,FALSE)) ->  | U56: FALSE | V56: 2 | W56: =VLOOKUP(H56,Database!$B$1:$E$4891,4,FALSE) ->  | X56: TRUE
A57: 52 | I57: =IF(ISERROR(VLOOKUP(H57,Database!$B$1:$C$5908,2,FALSE)),"",VLOOKUP(H57,Database!$B$1:$C$5908,2,FALSE)) ->  | U57: FALSE | V57: 2 | W57: =VLOOKUP(H57,Database!$B$1:$E$4891,4,FALSE) ->  | X57: TRUE
A58: 53 | I58: =IF(ISERROR(VLOOKUP(H58,Database!$B$1:$C$5908,2,FALSE)),"",VLOOKUP(H58,Database!$B$1:$C$5908,2,FALSE)) ->  | U58: FALSE | V58: 2 | W58: =VLOOKUP(H58,Database!$B$1:$E$4891,4,FALSE) ->  | X58: TRUE
A59: 54 | I59: =IF(ISERROR(VLOOKUP(H59,Database!$B$1:$C$5908,2,FALSE)),"",VLOOKUP(H59,Database!$B$1:$C$5908,2,FALSE)) ->  | U59: FALSE | V59: 2 | W59: =VLOOKUP(H59,Database!$B$1:$E$4891,4,FALSE) ->  | X59: TRUE
A60: 55 | I60: =IF(ISERROR(VLOOKUP(H60,Database!$B$1:$C$5908,2,FALSE)),"",VLOOKUP(H60,Database!$B$1:$C$5908,2,FALSE)) ->  | U60: FALSE | V60: 2 | W60: =VLOOKUP(H60,Database!$B$1:$E$4891,4,FALSE) ->  | X60: TRUE
A61: 56 | I61: =IF(ISERROR(VLOOKUP(H61,Database!$B$1:$C$5908,2,FALSE)),"",VLOOKUP(H61,Database!$B$1:$C$5908,2,FALSE)) ->  | U61: FALSE | V61: 2 | W61: =VLOOKUP(H61,Database!$B$1:$E$4891,4,FALSE) ->  | X61: TRUE
A62: 57 | I62: =IF(ISERROR(VLOOKUP(H62,Database!$B$1:$C$5908,2,FALSE)),"",VLOOKUP(H62,Database!$B$1:$C$5908,2,FALSE)) ->  | U62: FALSE | V62: 2 | W62: =VLOOKUP(H62,Database!$B$1:$E$4891,4,FALSE) ->  | X62: TRUE
A63: 58 | I63: =IF(ISERROR(VLOOKUP(H63,Database!$B$1:$C$5908,2,FALSE)),"",VLOOKUP(H63,Database!$B$1:$C$5908,2,FALSE)) ->  | N63: =VLOOKUP(L2,Database!$B$1:$E$4891,4,) ->  | O63: carca B-F | U63: FALSE | V63: 2 | W63: =VLOOKUP(H63,Database!$B$1:$E$4891,4,FALSE) ->  | X63: TRUE
A64: 59 | I64: =IF(ISERROR(VLOOKUP(H64,Database!$B$1:$C$5908,2,FALSE)),"",VLOOKUP(H64,Database!$B$1:$C$5908,2,FALSE)) ->  | N64: =ISERROR(N63) -> TRUE | U64: FALSE | V64: 2 | W64: =VLOOKUP(H64,Database!$B$1:$E$4891,4,FALSE) ->  | X64: TRUE
A65: 60 | I65: =IF(ISERROR(VLOOKUP(H65,Database!$B$1:$C$5908,2,FALSE)),"",VLOOKUP(H65,Database!$B$1:$C$5908,2,FALSE)) ->  | U65: FALSE | V65: 2 | W65: =VLOOKUP(H65,Database!$B$1:$E$4891,4,FALSE) ->  | X65: TRUE
A66: 61 | I66: =IF(ISERROR(VLOOKUP(H66,Database!$B$1:$C$5908,2,FALSE)),"",VLOOKUP(H66,Database!$B$1:$C$5908,2,FALSE)) ->  | U66: FALSE | V66: 2 | W66: =VLOOKUP(H66,Database!$B$1:$E$4891,4,FALSE) ->  | X66: TRUE
A67: 62 | I67: =IF(ISERROR(VLOOKUP(H67,Database!$B$1:$C$5908,2,FALSE)),"",VLOOKUP(H67,Database!$B$1:$C$5908,2,FALSE)) ->  | U67: FALSE | V67: 2 | W67: =VLOOKUP(H67,Database!$B$1:$E$4891,4,FALSE) ->  | X67: TRUE
A68: 63 | I68: =IF(ISERROR(VLOOKUP(H68,Database!$B$1:$C$5908,2,FALSE)),"",VLOOKUP(H68,Database!$B$1:$C$5908,2,FALSE)) ->  | U68: FALSE | V68: 2 | W68: =VLOOKUP(H68,Database!$B$1:$E$4891,4,FALSE) ->  | X68: TRUE
A69: 64 | I69: =IF(ISERROR(VLOOKUP(H69,Database!$B$1:$C$5908,2,FALSE)),"",VLOOKUP(H69,Database!$B$1:$C$5908,2,FALSE)) ->  | U69: FALSE | V69: 2 | W69: =VLOOKUP(H69,Database!$B$1:$E$4891,4,FALSE) ->  | X69: TRUE
A70: 65 | I70: =IF(ISERROR(VLOOKUP(H70,Database!$B$1:$C$5908,2,FALSE)),"",VLOOKUP(H70,Database!$B$1:$C$5908,2,FALSE)) ->  | U70: FALSE | V70: 2 | W70: =VLOOKUP(H70,Database!$B$1:$E$4891,4,FALSE) ->  | X70: TRUE
A71: =A70+1 -> 66 | I71: =IF(ISERROR(VLOOKUP(H71,Database!$B$1:$C$5908,2,FALSE)),"",VLOOKUP(H71,Database!$B$1:$C$5908,2,FALSE)) ->  | J71: =IF(V71=1,1,IF(AND(T71=0,F71="SSB",V71<>""),2,IF(AND(T71=0,F71="FM",V71<>""),2,IF(AND(T71=0,F71="DIGI",V71<>""),3,IF(AND(T71=0,F71="CW",V71<>""),5,IF(H71="-","",T71)))))) ->  | K71: =IF(H71="-","",IF(AND(H71<>"",X71=TRUE),"INDIPENDENT",IF(W71=0,"SCRIVI NOME NELLE NOTE",W71))) ->  | T71: =IF(H71="","",IF(H71=$R$6,25,IF(OR(H71=$R$7,H71=$R$8,H71=$R$9,H71=$R$10,H71=$R$11,H71=$R$12,H71=$R$13,H71=$R$14,H71=$R$15,H71=$R$16,H71=$R$17,H71=$R$18,H71=$R$19,H71=$R$20,H71=$R$21,H71=$R$22,H71=$R$23),15,0))) ->  | U71: =ISERROR(I71) -> FALSE | V71: 2 | W71: =VLOOKUP(H71,Database!$B$1:$E$4891,4,FALSE) ->  | X71: =ISERROR(W71) -> TRUE
A72: 67 | I72: =IF(ISERROR(VLOOKUP(H72,Database!$B$1:$C$5908,2,FALSE)),"",VLOOKUP(H72,Database!$B$1:$C$5908,2,FALSE)) ->  | U72: FALSE | V72: =IF(H72="-","",IF(AND(T72=0,U72=FALSE,I72=""),1,2)) -> 2 | W72: =VLOOKUP(H72,Database!$B$1:$E$4891,4,FALSE) ->  | X72: TRUE
A73: 68 | I73: =IF(ISERROR(VLOOKUP(H73,Database!$B$1:$C$5908,2,FALSE)),"",VLOOKUP(H73,Database!$B$1:$C$5908,2,FALSE)) ->  | U73: FALSE | V73: 2 | W73: =VLOOKUP(H73,Database!$B$1:$E$4891,4,FALSE) ->  | X73: TRUE
A74: 69 | I74: =IF(ISERROR(VLOOKUP(H74,Database!$B$1:$C$5908,2,FALSE)),"",VLOOKUP(H74,Database!$B$1:$C$5908,2,FALSE)) ->  | U74: FALSE | V74: 2 | W74: =VLOOKUP(H74,Database!$B$1:$E$4891,4,FALSE) ->  | X74: TRUE
A75: 70 | I75: =IF(ISERROR(VLOOKUP(H75,Database!$B$1:$C$5908,2,FALSE)),"",VLOOKUP(H75,Database!$B$1:$C$5908,2,FALSE)) ->  | U75: FALSE | V75: 2 | W75: =VLOOKUP(H75,Database!$B$1:$E$4891,4,FALSE) ->  | X75: TRUE
A76: 71 | I76: =IF(ISERROR(VLOOKUP(H76,Database!$B$1:$C$5908,2,FALSE)),"",VLOOKUP(H76,Database!$B$1:$C$5908,2,FALSE)) ->  | U76: FALSE | V76: 2 | W76: =VLOOKUP(H76,Database!$B$1:$E$4891,4,FALSE) ->  | X76: TRUE
A77: 72 | I77: =IF(ISERROR(VLOOKUP(H77,Database!$B$1:$C$5908,2,FALSE)),"",VLOOKUP(H77,Database!$B$1:$C$5908,2,FALSE)) ->  | U77: FALSE | V77: 2 | W77: =VLOOKUP(H77,Database!$B$1:$E$4891,4,FALSE) ->  | X77: TRUE
A78: 73 | I78: =IF(ISERROR(VLOOKUP(H78,Database!$B$1:$C$5908,2,FALSE)),"",VLOOKUP(H78,Database!$B$1:$C$5908,2,FALSE)) ->  | U78: FALSE | V78: 2 | W78: =VLOOKUP(H78,Database!$B$1:$E$4891,4,FALSE) ->  | X78: TRUE
A79: 74 | I79: =IF(ISERROR(VLOOKUP(H79,Database!$B$1:$C$5908,2,FALSE)),"",VLOOKUP(H79,Database!$B$1:$C$5908,2,FALSE)) ->  | U79: FALSE | V79: 2 | W79: =VLOOKUP(H79,Database!$B$1:$E$4891,4,FALSE) ->  | X79: TRUE
A80: 75 | I80: =IF(ISERROR(VLOOKUP(H80,Database!$B$1:$C$5908,2,FALSE)),"",VLOOKUP(H80,Database!$B$1:$C$5908,2,FALSE)) ->  | U80: FALSE | V80: 2 | W80: =VLOOKUP(H80,Database!$B$1:$E$4891,4,FALSE) ->  | X80: TRUE
A81: 76 | I81: =IF(ISERROR(VLOOKUP(H81,Database!$B$1:$C$5908,2,FALSE)),"",VLOOKUP(H81,Database!$B$1:$C$5908,2,FALSE)) ->  | U81: FALSE | V81: 2 | W81: =VLOOKUP(H81,Database!$B$1:$E$4891,4,FALSE) ->  | X81: TRUE
A82: 77 | I82: =IF(ISERROR(VLOOKUP(H82,Database!$B$1:$C$5908,2,FALSE)),"",VLOOKUP(H82,Database!$B$1:$C$5908,2,FALSE)) ->  | U82: FALSE | V82: 2 | W82: =VLOOKUP(H82,Database!$B$1:$E$4891,4,FALSE) ->  | X82: TRUE
A83: 78 | I83: =IF(ISERROR(VLOOKUP(H83,Database!$B$1:$C$5908,2,FALSE)),"",VLOOKUP(H83,Database!$B$1:$C$5908,2,FALSE)) ->  | U83: FALSE | V83: 2 | W83: =VLOOKUP(H83,Database!$B$1:$E$4891,4,FALSE) ->  | X83: TRUE
A84: 79 | I84: =IF(ISERROR(VLOOKUP(H84,Database!$B$1:$C$5908,2,FALSE)),"",VLOOKUP(H84,Database!$B$1:$C$5908,2,FALSE)) ->  | U84: FALSE | V84: 2 | W84: =VLOOKUP(H84,Database!$B$1:$E$4891,4,FALSE) ->  | X84: TRUE
A85: 80 | I85: =IF(ISERROR(VLOOKUP(H85,Database!$B$1:$C$5908,2,FALSE)),"",VLOOKUP(H85,Database!$B$1:$C$5908,2,FALSE)) ->  | U85: FALSE | V85: 2 | W85: =VLOOKUP(H85,Database!$B$1:$E$4891,4,FALSE) ->  | X85: TRUE
A86: 81 | I86: =IF(ISERROR(VLOOKUP(H86,Database!$B$1:$C$5908,2,FALSE)),"",VLOOKUP(H86,Database!$B$1:$C$5908,2,FALSE)) ->  | U86: FALSE | V86: 2 | W86: =VLOOKUP(H86,Database!$B$1:$E$4891,4,FALSE) ->  | X86: TRUE
A87: 82 | I87: =IF(ISERROR(VLOOKUP(H87,Database!$B$1:$C$5908,2,FALSE)),"",VLOOKUP(H87,Database!$B$1:$C$5908,2,FALSE)) ->  | U87: FALSE | V87: 2 | W87: =VLOOKUP(H87,Database!$B$1:$E$4891,4,FALSE) ->  | X87: TRUE
A88: 83 | I88: =IF(ISERROR(VLOOKUP(H88,Database!$B$1:$C$5908,2,FALSE)),"",VLOOKUP(H88,Database!$B$1:$C$5908,2,FALSE)) ->  | U88: FALSE | V88: 2 | W88: =VLOOKUP(H88,Database!$B$1:$E$4891,4,FALSE) ->  | X88: TRUE
A89: 84 | I89: =IF(ISERROR(VLOOKUP(H89,Database!$B$1:$C$5908,2,FALSE)),"",VLOOKUP(H89,Database!$B$1:$C$5908,2,FALSE)) ->  | U89: FALSE | V89: 2 | W89: =VLOOKUP(H89,Database!$B$1:$E$4891,4,FALSE) ->  | X89: TRUE
A90: 85 | I90: =IF(ISERROR(VLOOKUP(H90,Database!$B$1:$C$5908,2,FALSE)),"",VLOOKUP(H90,Database!$B$1:$C$5908,2,FALSE)) ->  | U90: FALSE | V90: 2 | W90: =VLOOKUP(H90,Database!$B$1:$E$4891,4,FALSE) ->  | X90: TRUE
A91: 86 | I91: =IF(ISERROR(VLOOKUP(H91,Database!$B$1:$C$5908,2,FALSE)),"",VLOOKUP(H91,Database!$B$1:$C$5908,2,FALSE)) ->  | U91: FALSE | V91: 2 | W91: =VLOOKUP(H91,Database!$B$1:$E$4891,4,FALSE) ->  | X91: TRUE
A92: 87 | I92: =IF(ISERROR(VLOOKUP(H92,Database!$B$1:$C$5908,2,FALSE)),"",VLOOKUP(H92,Database!$B$1:$C$5908,2,FALSE)) ->  | U92: FALSE | V92: 2 | W92: =VLOOKUP(H92,Database!$B$1:$E$4891,4,FALSE) ->  | X92: TRUE
A93: 88 | I93: =IF(ISERROR(VLOOKUP(H93,Database!$B$1:$C$5908,2,FALSE)),"",VLOOKUP(H93,Database!$B$1:$C$5908,2,FALSE)) ->  | U93: FALSE | V93: 2 | W93: =VLOOKUP(H93,Database!$B$1:$E$4891,4,FALSE) ->  | X93: TRUE
A94: 89 | I94: =IF(ISERROR(VLOOKUP(H94,Database!$B$1:$C$5908,2,FALSE)),"",VLOOKUP(H94,Database!$B$1:$C$5908,2,FALSE)) ->  | U94: FALSE | V94: 2 | W94: =VLOOKUP(H94,Database!$B$1:$E$4891,4,FALSE) ->  | X94: TRUE
A95: 90 | I95: =IF(ISERROR(VLOOKUP(H95,Database!$B$1:$C$5908,2,FALSE)),"",VLOOKUP(H95,Database!$B$1:$C$5908,2,FALSE)) ->  | U95: FALSE | V95: 2 | W95: =VLOOKUP(H95,Database!$B$1:$E$4891,4,FALSE) ->  | X95: TRUE
A96: 91 | I96: =IF(ISERROR(VLOOKUP(H96,Database!$B$1:$C$5908,2,FALSE)),"",VLOOKUP(H96,Database!$B$1:$C$5908,2,FALSE)) ->  | U96: FALSE | V96: 2 | W96: =VLOOKUP(H96,Database!$B$1:$E$4891,4,FALSE) ->  | X96: TRUE
A97: 92 | I97: =IF(ISERROR(VLOOKUP(H97,Database!$B$1:$C$5908,2,FALSE)),"",VLOOKUP(H97,Database!$B$1:$C$5908,2,FALSE)) ->  | U97: FALSE | V97: 2 | W97: =VLOOKUP(H97,Database!$B$1:$E$4891,4,FALSE) ->  | X97: TRUE
A98: 93 | I98: =IF(ISERROR(VLOOKUP(H98,Database!$B$1:$C$5908,2,FALSE)),"",VLOOKUP(H98,Database!$B$1:$C$5908,2,FALSE)) ->  | U98: FALSE | V98: 2 | W98: =VLOOKUP(H98,Database!$B$1:$E$4891,4,FALSE) ->  | X98: TRUE
A99: 94 | I99: =IF(ISERROR(VLOOKUP(H99,Database!$B$1:$C$5908,2,FALSE)),"",VLOOKUP(H99,Database!$B$1:$C$5908,2,FALSE)) ->  | U99: FALSE | V99: 2 | W99: =VLOOKUP(H99,Database!$B$1:$E$4891,4,FALSE) ->  | X99: TRUE
A100: 95 | I100: =IF(ISERROR(VLOOKUP(H100,Database!$B$1:$C$5908,2,FALSE)),"",VLOOKUP(H100,Database!$B$1:$C$5908,2,FALSE)) ->  | U100: FALSE | V100: 2 | W100: =VLOOKUP(H100,Database!$B$1:$E$4891,4,FALSE) ->  | X100: TRUE
A101: 96 | I101: =IF(ISERROR(VLOOKUP(H101,Database!$B$1:$C$5908,2,FALSE)),"",VLOOKUP(H101,Database!$B$1:$C$5908,2,FALSE)) ->  | U101: FALSE | V101: 2 | W101: =VLOOKUP(H101,Database!$B$1:$E$4891,4,FALSE) ->  | X101: TRUE
A102: 97 | I102: =IF(ISERROR(VLOOKUP(H102,Database!$B$1:$C$5908,2,FALSE)),"",VLOOKUP(H102,Database!$B$1:$C$5908,2,FALSE)) ->  | U102: FALSE | V102: 2 | W102: =VLOOKUP(H102,Database!$B$1:$E$4891,4,FALSE) ->  | X102: TRUE
A103: 98 | I103: =IF(ISERROR(VLOOKUP(H103,Database!$B$1:$C$5908,2,FALSE)),"",VLOOKUP(H103,Database!$B$1:$C$5908,2,FALSE)) ->  | U103: FALSE | V103: 2 | W103: =VLOOKUP(H103,Database!$B$1:$E$4891,4,FALSE) ->  | X103: TRUE
A104: 99 | I104: =IF(ISERROR(VLOOKUP(H104,Database!$B$1:$C$5908,2,FALSE)),"",VLOOKUP(H104,Database!$B$1:$C$5908,2,FALSE)) ->  | U104: FALSE | V104: 2 | W104: =VLOOKUP(H104,Database!$B$1:$E$4891,4,FALSE) ->  | X104: TRUE
A105: 100 | I105: =IF(ISERROR(VLOOKUP(H105,Database!$B$1:$C$5908,2,FALSE)),"",VLOOKUP(H105,Database!$B$1:$C$5908,2,FALSE)) ->  | U105: FALSE | V105: 2 | W105: =VLOOKUP(H105,Database!$B$1:$E$4891,4,FALSE) ->  | X105: TRUE
A106: 101 | I106: =IF(ISERROR(VLOOKUP(H106,Database!$B$1:$C$5908,2,FALSE)),"",VLOOKUP(H106,Database!$B$1:$C$5908,2,FALSE)) ->  | U106: FALSE | V106: 2 | W106: =VLOOKUP(H106,Database!$B$1:$E$4891,4,FALSE) ->  | X106: TRUE
A107: 102 | I107: =IF(ISERROR(VLOOKUP(H107,Database!$B$1:$C$5908,2,FALSE)),"",VLOOKUP(H107,Database!$B$1:$C$5908,2,FALSE)) ->  | U107: FALSE | V107: 2 | W107: =VLOOKUP(H107,Database!$B$1:$E$4891,4,FALSE) ->  | X107: TRUE
A108: 103 | I108: =IF(ISERROR(VLOOKUP(H108,Database!$B$1:$C$5908,2,FALSE)),"",VLOOKUP(H108,Database!$B$1:$C$5908,2,FALSE)) ->  | U108: FALSE | V108: 2 | W108: =VLOOKUP(H108,Database!$B$1:$E$4891,4,FALSE) ->  | X108: TRUE
A109: 104 | I109: =IF(ISERROR(VLOOKUP(H109,Database!$B$1:$C$5908,2,FALSE)),"",VLOOKUP(H109,Database!$B$1:$C$5908,2,FALSE)) ->  | U109: FALSE | V109: 2 | W109: =VLOOKUP(H109,Database!$B$1:$E$4891,4,FALSE) ->  | X109: TRUE
A110: 105 | I110: =IF(ISERROR(VLOOKUP(H110,Database!$B$1:$C$5908,2,FALSE)),"",VLOOKUP(H110,Database!$B$1:$C$5908,2,FALSE)) ->  | U110: FALSE | V110: 2 | W110: =VLOOKUP(H110,Database!$B$1:$E$4891,4,FALSE) ->  | X110: TRUE
A111: 106 | I111: =IF(ISERROR(VLOOKUP(H111,Database!$B$1:$C$5908,2,FALSE)),"",VLOOKUP(H111,Database!$B$1:$C$5908,2,FALSE)) ->  | U111: FALSE | V111: 2 | W111: =VLOOKUP(H111,Database!$B$1:$E$4891,4,FALSE) ->  | X111: TRUE
A112: 107 | I112: =IF(ISERROR(VLOOKUP(H112,Database!$B$1:$C$5908,2,FALSE)),"",VLOOKUP(H112,Database!$B$1:$C$5908,2,FALSE)) ->  | U112: FALSE | V112: 2 | W112: =VLOOKUP(H112,Database!$B$1:$E$4891,4,FALSE) ->  | X112: TRUE
A113: 108 | I113: =IF(ISERROR(VLOOKUP(H113,Database!$B$1:$C$5908,2,FALSE)),"",VLOOKUP(H113,Database!$B$1:$C$5908,2,FALSE)) ->  | U113: FALSE | V113: 2 | W113: =VLOOKUP(H113,Database!$B$1:$E$4891,4,FALSE) ->  | X113: TRUE
A114: 109 | I114: =IF(ISERROR(VLOOKUP(H114,Database!$B$1:$C$5908,2,FALSE)),"",VLOOKUP(H114,Database!$B$1:$C$5908,2,FALSE)) ->  | U114: FALSE | V114: 2 | W114: =VLOOKUP(H114,Database!$B$1:$E$4891,4,FALSE) ->  | X114: TRUE
A115: 110 | I115: =IF(ISERROR(VLOOKUP(H115,Database!$B$1:$C$5908,2,FALSE)),"",VLOOKUP(H115,Database!$B$1:$C$5908,2,FALSE)) ->  | U115: FALSE | V115: 2 | W115: =VLOOKUP(H115,Database!$B$1:$E$4891,4,FALSE) ->  | X115: TRUE
A116: 111 | I116: =IF(ISERROR(VLOOKUP(H116,Database!$B$1:$C$5908,2,FALSE)),"",VLOOKUP(H116,Database!$B$1:$C$5908,2,FALSE)) ->  | U116: FALSE | V116: 2 | W116: =VLOOKUP(H116,Database!$B$1:$E$4891,4,FALSE) ->  | X116: TRUE
A117: 112 | I117: =IF(ISERROR(VLOOKUP(H117,Database!$B$1:$C$5908,2,FALSE)),"",VLOOKUP(H117,Database!$B$1:$C$5908,2,FALSE)) ->  | U117: FALSE | V117: 2 | W117: =VLOOKUP(H117,Database!$B$1:$E$4891,4,FALSE) ->  | X117: TRUE
A118: 113 | I118: =IF(ISERROR(VLOOKUP(H118,Database!$B$1:$C$5908,2,FALSE)),"",VLOOKUP(H118,Database!$B$1:$C$5908,2,FALSE)) ->  | U118: FALSE | V118: 2 | W118: =VLOOKUP(H118,Database!$B$1:$E$4891,4,FALSE) ->  | X118: TRUE
A119: 114 | I119: =IF(ISERROR(VLOOKUP(H119,Database!$B$1:$C$5908,2,FALSE)),"",VLOOKUP(H119,Database!$B$1:$C$5908,2,FALSE)) ->  | U119: FALSE | V119: 2 | W119: =VLOOKUP(H119,Database!$B$1:$E$4891,4,FALSE) ->  | X119: TRUE
A120: 115 | I120: =IF(ISERROR(VLOOKUP(H120,Database!$B$1:$C$5908,2,FALSE)),"",VLOOKUP(H120,Database!$B$1:$C$5908,2,FALSE)) ->  | U120: FALSE | V120: 2 | W120: =VLOOKUP(H120,Database!$B$1:$E$4891,4,FALSE) ->  | X120: TRUE
A121: 116 | I121: =IF(ISERROR(VLOOKUP(H121,Database!$B$1:$C$5908,2,FALSE)),"",VLOOKUP(H121,Database!$B$1:$C$5908,2,FALSE)) ->  | U121: FALSE | V121: 2 | W121: =VLOOKUP(H121,Database!$B$1:$E$4891,4,FALSE) ->  | X121: TRUE
A122: 117 | I122: =IF(ISERROR(VLOOKUP(H122,Database!$B$1:$C$5908,2,FALSE)),"",VLOOKUP(H122,Database!$B$1:$C$5908,2,FALSE)) ->  | U122: FALSE | V122: 2 | W122: =VLOOKUP(H122,Database!$B$1:$E$4891,4,FALSE) ->  | X122: TRUE
A123: 118 | I123: =IF(ISERROR(VLOOKUP(H123,Database!$B$1:$C$5908,2,FALSE)),"",VLOOKUP(H123,Database!$B$1:$C$5908,2,FALSE)) ->  | U123: FALSE | V123: 2 | W123: =VLOOKUP(H123,Database!$B$1:$E$4891,4,FALSE) ->  | X123: TRUE
A124: 119 | I124: =IF(ISERROR(VLOOKUP(H124,Database!$B$1:$C$5908,2,FALSE)),"",VLOOKUP(H124,Database!$B$1:$C$5908,2,FALSE)) ->  | U124: FALSE | V124: 2 | W124: =VLOOKUP(H124,Database!$B$1:$E$4891,4,FALSE) ->  | X124: TRUE
A125: 120 | I125: =IF(ISERROR(VLOOKUP(H125,Database!$B$1:$C$5908,2,FALSE)),"",VLOOKUP(H125,Database!$B$1:$C$5908,2,FALSE)) ->  | U125: FALSE | V125: 2 | W125: =VLOOKUP(H125,Database!$B$1:$E$4891,4,FALSE) ->  | X125: TRUE
A126: 121 | I126: =IF(ISERROR(VLOOKUP(H126,Database!$B$1:$C$5908,2,FALSE)),"",VLOOKUP(H126,Database!$B$1:$C$5908,2,FALSE)) ->  | U126: FALSE | V126: 2 | W126: =VLOOKUP(H126,Database!$B$1:$E$4891,4,FALSE) ->  | X126: TRUE
A127: 122 | I127: =IF(ISERROR(VLOOKUP(H127,Database!$B$1:$C$5908,2,FALSE)),"",VLOOKUP(H127,Database!$B$1:$C$5908,2,FALSE)) ->  | U127: FALSE | V127: 2 | W127: =VLOOKUP(H127,Database!$B$1:$E$4891,4,FALSE) ->  | X127: TRUE
A128: 123 | I128: =IF(ISERROR(VLOOKUP(H128,Database!$B$1:$C$5908,2,FALSE)),"",VLOOKUP(H128,Database!$B$1:$C$5908,2,FALSE)) ->  | U128: FALSE | V128: 2 | W128: =VLOOKUP(H128,Database!$B$1:$E$4891,4,FALSE) ->  | X128: TRUE
A129: 124 | I129: =IF(ISERROR(VLOOKUP(H129,Database!$B$1:$C$5908,2,FALSE)),"",VLOOKUP(H129,Database!$B$1:$C$5908,2,FALSE)) ->  | U129: FALSE | V129: 2 | W129: =VLOOKUP(H129,Database!$B$1:$E$4891,4,FALSE) ->  | X129: TRUE
A130: 125 | I130: =IF(ISERROR(VLOOKUP(H130,Database!$B$1:$C$5908,2,FALSE)),"",VLOOKUP(H130,Database!$B$1:$C$5908,2,FALSE)) ->  | U130: FALSE | V130: 2 | W130: =VLOOKUP(H130,Database!$B$1:$E$4891,4,FALSE) ->  | X130: TRUE
A131: 126 | I131: =IF(ISERROR(VLOOKUP(H131,Database!$B$1:$C$5908,2,FALSE)),"",VLOOKUP(H131,Database!$B$1:$C$5908,2,FALSE)) ->  | U131: FALSE | V131: 2 | W131: =VLOOKUP(H131,Database!$B$1:$E$4891,4,FALSE) ->  | X131: TRUE
A132: 127 | I132: =IF(ISERROR(VLOOKUP(H132,Database!$B$1:$C$5908,2,FALSE)),"",VLOOKUP(H132,Database!$B$1:$C$5908,2,FALSE)) ->  | U132: FALSE | V132: 2 | W132: =VLOOKUP(H132,Database!$B$1:$E$4891,4,FALSE) ->  | X132: TRUE
A133: 128 | I133: =IF(ISERROR(VLOOKUP(H133,Database!$B$1:$C$5908,2,FALSE)),"",VLOOKUP(H133,Database!$B$1:$C$5908,2,FALSE)) ->  | U133: FALSE | V133: 2 | W133: =VLOOKUP(H133,Database!$B$1:$E$4891,4,FALSE) ->  | X133: TRUE
A134: 129 | I134: =IF(ISERROR(VLOOKUP(H134,Database!$B$1:$C$5908,2,FALSE)),"",VLOOKUP(H134,Database!$B$1:$C$5908,2,FALSE)) ->  | U134: FALSE | V134: 2 | W134: =VLOOKUP(H134,Database!$B$1:$E$4891,4,FALSE) ->  | X134: TRUE
A135: =A134+1 -> 130 | I135: =IF(ISERROR(VLOOKUP(H135,Database!$B$1:$C$5908,2,FALSE)),"",VLOOKUP(H135,Database!$B$1:$C$5908,2,FALSE)) ->  | J135: =IF(V135=1,1,IF(AND(T135=0,F135="SSB",V135<>""),2,IF(AND(T135=0,F135="FM",V135<>""),2,IF(AND(T135=0,F135="DIGI",V135<>""),3,IF(AND(T135=0,F135="CW",V135<>""),5,IF(H135="-","",T135)))))) ->  | K135: =IF(H135="-","",IF(AND(H135<>"",X135=TRUE),"INDIPENDENT",IF(W135=0,"SCRIVI NOME NELLE NOTE",W135))) ->  | T135: =IF(H135="","",IF(H135=$R$6,25,IF(OR(H135=$R$7,H135=$R$8,H135=$R$9,H135=$R$10,H135=$R$11,H135=$R$12,H135=$R$13,H135=$R$14,H135=$R$15,H135=$R$16,H135=$R$17,H135=$R$18,H135=$R$19,H135=$R$20,H135=$R$21,H135=$R$22,H135=$R$23),15,0))) ->  | U135: =ISERROR(I135) -> FALSE | V135: 2 | W135: =VLOOKUP(H135,Database!$B$1:$E$4891,4,FALSE) ->  | X135: =ISERROR(W135) -> TRUE
A136: 131 | I136: =IF(ISERROR(VLOOKUP(H136,Database!$B$1:$C$5908,2,FALSE)),"",VLOOKUP(H136,Database!$B$1:$C$5908,2,FALSE)) ->  | U136: FALSE | V136: =IF(H136="-","",IF(AND(T136=0,U136=FALSE,I136=""),1,2)) -> 2 | W136: =VLOOKUP(H136,Database!$B$1:$E$4891,4,FALSE) ->  | X136: TRUE
A137: 132 | I137: =IF(ISERROR(VLOOKUP(H137,Database!$B$1:$C$5908,2,FALSE)),"",VLOOKUP(H137,Database!$B$1:$C$5908,2,FALSE)) ->  | U137: FALSE | V137: 2 | W137: =VLOOKUP(H137,Database!$B$1:$E$4891,4,FALSE) ->  | X137: TRUE
A138: 133 | I138: =IF(ISERROR(VLOOKUP(H138,Database!$B$1:$C$5908,2,FALSE)),"",VLOOKUP(H138,Database!$B$1:$C$5908,2,FALSE)) ->  | U138: FALSE | V138: 2 | W138: =VLOOKUP(H138,Database!$B$1:$E$4891,4,FALSE) ->  | X138: TRUE
A139: 134 | I139: =IF(ISERROR(VLOOKUP(H139,Database!$B$1:$C$5908,2,FALSE)),"",VLOOKUP(H139,Database!$B$1:$C$5908,2,FALSE)) ->  | U139: FALSE | V139: 2 | W139: =VLOOKUP(H139,Database!$B$1:$E$4891,4,FALSE) ->  | X139: TRUE
A140: 135 | I140: =IF(ISERROR(VLOOKUP(H140,Database!$B$1:$C$5908,2,FALSE)),"",VLOOKUP(H140,Database!$B$1:$C$5908,2,FALSE)) ->  | U140: FALSE | V140: 2 | W140: =VLOOKUP(H140,Database!$B$1:$E$4891,4,FALSE) ->  | X140: TRUE
A141: 136 | I141: =IF(ISERROR(VLOOKUP(H141,Database!$B$1:$C$5908,2,FALSE)),"",VLOOKUP(H141,Database!$B$1:$C$5908,2,FALSE)) ->  | U141: FALSE | V141: 2 | W141: =VLOOKUP(H141,Database!$B$1:$E$4891,4,FALSE) ->  | X141: TRUE
A142: 137 | I142: =IF(ISERROR(VLOOKUP(H142,Database!$B$1:$C$5908,2,FALSE)),"",VLOOKUP(H142,Database!$B$1:$C$5908,2,FALSE)) ->  | U142: FALSE | V142: 2 | W142: =VLOOKUP(H142,Database!$B$1:$E$4891,4,FALSE) ->  | X142: TRUE
A143: 138 | I143: =IF(ISERROR(VLOOKUP(H143,Database!$B$1:$C$5908,2,FALSE)),"",VLOOKUP(H143,Database!$B$1:$C$5908,2,FALSE)) ->  | U143: FALSE | V143: 2 | W143: =VLOOKUP(H143,Database!$B$1:$E$4891,4,FALSE) ->  | X143: TRUE
A144: 139 | I144: =IF(ISERROR(VLOOKUP(H144,Database!$B$1:$C$5908,2,FALSE)),"",VLOOKUP(H144,Database!$B$1:$C$5908,2,FALSE)) ->  | U144: =ISERROR(I144) -> FALSE | V144: 2 | W144: =VLOOKUP(H144,Database!$B$1:$E$4891,4,FALSE) ->  | X144: TRUE
A145: 140 | I145: =IF(ISERROR(VLOOKUP(H145,Database!$B$1:$C$5908,2,FALSE)),"",VLOOKUP(H145,Database!$B$1:$C$5908,2,FALSE)) ->  | U145: =ISERROR(I145) -> FALSE | V145: 2 | W145: =VLOOKUP(H145,Database!$B$1:$E$4891,4,FALSE) ->  | X145: TRUE
A146: 141 | I146: =IF(ISERROR(VLOOKUP(H146,Database!$B$1:$C$5908,2,FALSE)),"",VLOOKUP(H146,Database!$B$1:$C$5908,2,FALSE)) ->  | U146: FALSE | V146: 2 | W146: =VLOOKUP(H146,Database!$B$1:$E$4891,4,FALSE) ->  | X146: TRUE
A147: 142 | I147: =IF(ISERROR(VLOOKUP(H147,Database!$B$1:$C$5908,2,FALSE)),"",VLOOKUP(H147,Database!$B$1:$C$5908,2,FALSE)) ->  | U147: FALSE | V147: 2 | W147: =VLOOKUP(H147,Database!$B$1:$E$4891,4,FALSE) ->  | X147: TRUE
A148: 143 | I148: =IF(ISERROR(VLOOKUP(H148,Database!$B$1:$C$5908,2,FALSE)),"",VLOOKUP(H148,Database!$B$1:$C$5908,2,FALSE)) ->  | U148: FALSE | V148: 2 | W148: =VLOOKUP(H148,Database!$B$1:$E$4891,4,FALSE) ->  | X148: TRUE
A149: 144 | I149: =IF(ISERROR(VLOOKUP(H149,Database!$B$1:$C$5908,2,FALSE)),"",VLOOKUP(H149,Database!$B$1:$C$5908,2,FALSE)) ->  | U149: FALSE | V149: 2 | W149: =VLOOKUP(H149,Database!$B$1:$E$4891,4,FALSE) ->  | X149: TRUE
A150: 145 | I150: =IF(ISERROR(VLOOKUP(H150,Database!$B$1:$C$5908,2,FALSE)),"",VLOOKUP(H150,Database!$B$1:$C$5908,2,FALSE)) ->  | U150: FALSE | V150: 2 | W150: =VLOOKUP(H150,Database!$B$1:$E$4891,4,FALSE) ->  | X150: TRUE
A151: 146 | I151: =IF(ISERROR(VLOOKUP(H151,Database!$B$1:$C$5908,2,FALSE)),"",VLOOKUP(H151,Database!$B$1:$C$5908,2,FALSE)) ->  | U151: FALSE | V151: 2 | W151: =VLOOKUP(H151,Database!$B$1:$E$4891,4,FALSE) ->  | X151: TRUE
A152: 147 | I152: =IF(ISERROR(VLOOKUP(H152,Database!$B$1:$C$5908,2,FALSE)),"",VLOOKUP(H152,Database!$B$1:$C$5908,2,FALSE)) ->  | U152: FALSE | V152: 2 | W152: =VLOOKUP(H152,Database!$B$1:$E$4891,4,FALSE) ->  | X152: TRUE
A153: 148 | I153: =IF(ISERROR(VLOOKUP(H153,Database!$B$1:$C$5908,2,FALSE)),"",VLOOKUP(H153,Database!$B$1:$C$5908,2,FALSE)) ->  | U153: FALSE | V153: 2 | W153: =VLOOKUP(H153,Database!$B$1:$E$4891,4,FALSE) ->  | X153: TRUE
A154: 149 | I154: =IF(ISERROR(VLOOKUP(H154,Database!$B$1:$C$5908,2,FALSE)),"",VLOOKUP(H154,Database!$B$1:$C$5908,2,FALSE)) ->  | U154: FALSE | V154: 2 | W154: =VLOOKUP(H154,Database!$B$1:$E$4891,4,FALSE) ->  | X154: TRUE
A155: 150 | I155: =IF(ISERROR(VLOOKUP(H155,Database!$B$1:$C$5908,2,FALSE)),"",VLOOKUP(H155,Database!$B$1:$C$5908,2,FALSE)) ->  | U155: FALSE | V155: 2 | W155: =VLOOKUP(H155,Database!$B$1:$E$4891,4,FALSE) ->  | X155: TRUE
A156: 151 | I156: =IF(ISERROR(VLOOKUP(H156,Database!$B$1:$C$5908,2,FALSE)),"",VLOOKUP(H156,Database!$B$1:$C$5908,2,FALSE)) ->  | U156: FALSE | V156: 2 | W156: =VLOOKUP(H156,Database!$B$1:$E$4891,4,FALSE) ->  | X156: TRUE
A157: 152 | I157: =IF(ISERROR(VLOOKUP(H157,Database!$B$1:$C$5908,2,FALSE)),"",VLOOKUP(H157,Database!$B$1:$C$5908,2,FALSE)) ->  | U157: FALSE | V157: 2 | W157: =VLOOKUP(H157,Database!$B$1:$E$4891,4,FALSE) ->  | X157: TRUE
A158: 153 | I158: =IF(ISERROR(VLOOKUP(H158,Database!$B$1:$C$5908,2,FALSE)),"",VLOOKUP(H158,Database!$B$1:$C$5908,2,FALSE)) ->  | U158: FALSE | V158: 2 | W158: =VLOOKUP(H158,Database!$B$1:$E$4891,4,FALSE) ->  | X158: TRUE
A159: 154 | I159: =IF(ISERROR(VLOOKUP(H159,Database!$B$1:$C$5908,2,FALSE)),"",VLOOKUP(H159,Database!$B$1:$C$5908,2,FALSE)) ->  | U159: FALSE | V159: 2 | W159: =VLOOKUP(H159,Database!$B$1:$E$4891,4,FALSE) ->  | X159: TRUE
A160: 155 | I160: =IF(ISERROR(VLOOKUP(H160,Database!$B$1:$C$5908,2,FALSE)),"",VLOOKUP(H160,Database!$B$1:$C$5908,2,FALSE)) ->  | U160: FALSE | V160: 2 | W160: =VLOOKUP(H160,Database!$B$1:$E$4891,4,FALSE) ->  | X160: TRUE
A161: 156 | I161: =IF(ISERROR(VLOOKUP(H161,Database!$B$1:$C$5908,2,FALSE)),"",VLOOKUP(H161,Database!$B$1:$C$5908,2,FALSE)) ->  | U161: FALSE | V161: 2 | W161: =VLOOKUP(H161,Database!$B$1:$E$4891,4,FALSE) ->  | X161: TRUE
A162: 157 | I162: =IF(ISERROR(VLOOKUP(H162,Database!$B$1:$C$5908,2,FALSE)),"",VLOOKUP(H162,Database!$B$1:$C$5908,2,FALSE)) ->  | U162: FALSE | V162: 2 | W162: =VLOOKUP(H162,Database!$B$1:$E$4891,4,FALSE) ->  | X162: TRUE
A163: 158 | I163: =IF(ISERROR(VLOOKUP(H163,Database!$B$1:$C$5908,2,FALSE)),"",VLOOKUP(H163,Database!$B$1:$C$5908,2,FALSE)) ->  | U163: FALSE | V163: 2 | W163: =VLOOKUP(H163,Database!$B$1:$E$4891,4,FALSE) ->  | X163: TRUE
A164: 159 | I164: =IF(ISERROR(VLOOKUP(H164,Database!$B$1:$C$5908,2,FALSE)),"",VLOOKUP(H164,Database!$B$1:$C$5908,2,FALSE)) ->  | U164: FALSE | V164: 2 | W164: =VLOOKUP(H164,Database!$B$1:$E$4891,4,FALSE) ->  | X164: TRUE
A165: 160 | I165: =IF(ISERROR(VLOOKUP(H165,Database!$B$1:$C$5908,2,FALSE)),"",VLOOKUP(H165,Database!$B$1:$C$5908,2,FALSE)) ->  | U165: FALSE | V165: 2 | W165: =VLOOKUP(H165,Database!$B$1:$E$4891,4,FALSE) ->  | X165: TRUE
A166: 161 | I166: =IF(ISERROR(VLOOKUP(H166,Database!$B$1:$C$5908,2,FALSE)),"",VLOOKUP(H166,Database!$B$1:$C$5908,2,FALSE)) ->  | U166: FALSE | V166: 2 | W166: =VLOOKUP(H166,Database!$B$1:$E$4891,4,FALSE) ->  | X166: TRUE
A167: 162 | I167: =IF(ISERROR(VLOOKUP(H167,Database!$B$1:$C$5908,2,FALSE)),"",VLOOKUP(H167,Database!$B$1:$C$5908,2,FALSE)) ->  | U167: FALSE | V167: 2 | W167: =VLOOKUP(H167,Database!$B$1:$E$4891,4,FALSE) ->  | X167: TRUE
A168: 163 | I168: =IF(ISERROR(VLOOKUP(H168,Database!$B$1:$C$5908,2,FALSE)),"",VLOOKUP(H168,Database!$B$1:$C$5908,2,FALSE)) ->  | U168: FALSE | V168: 2 | W168: =VLOOKUP(H168,Database!$B$1:$E$4891,4,FALSE) ->  | X168: TRUE
A169: 164 | I169: =IF(ISERROR(VLOOKUP(H169,Database!$B$1:$C$5908,2,FALSE)),"",VLOOKUP(H169,Database!$B$1:$C$5908,2,FALSE)) ->  | U169: FALSE | V169: 2 | W169: =VLOOKUP(H169,Database!$B$1:$E$4891,4,FALSE) ->  | X169: TRUE
A170: 165 | I170: =IF(ISERROR(VLOOKUP(H170,Database!$B$1:$C$5908,2,FALSE)),"",VLOOKUP(H170,Database!$B$1:$C$5908,2,FALSE)) ->  | U170: FALSE | V170: 2 | W170: =VLOOKUP(H170,Database!$B$1:$E$4891,4,FALSE) ->  | X170: TRUE
A171: 166 | I171: =IF(ISERROR(VLOOKUP(H171,Database!$B$1:$C$5908,2,FALSE)),"",VLOOKUP(H171,Database!$B$1:$C$5908,2,FALSE)) ->  | U171: FALSE | V171: 2 | W171: =VLOOKUP(H171,Database!$B$1:$E$4891,4,FALSE) ->  | X171: TRUE
A172: 167 | I172: =IF(ISERROR(VLOOKUP(H172,Database!$B$1:$C$5908,2,FALSE)),"",VLOOKUP(H172,Database!$B$1:$C$5908,2,FALSE)) ->  | U172: FALSE | V172: 2 | W172: =VLOOKUP(H172,Database!$B$1:$E$4891,4,FALSE) ->  | X172: TRUE
A173: 168 | I173: =IF(ISERROR(VLOOKUP(H173,Database!$B$1:$C$5908,2,FALSE)),"",VLOOKUP(H173,Database!$B$1:$C$5908,2,FALSE)) ->  | U173: FALSE | V173: 2 | W173: =VLOOKUP(H173,Database!$B$1:$E$4891,4,FALSE) ->  | X173: TRUE
A174: 169 | I174: =IF(ISERROR(VLOOKUP(H174,Database!$B$1:$C$5908,2,FALSE)),"",VLOOKUP(H174,Database!$B$1:$C$5908,2,FALSE)) ->  | U174: FALSE | V174: 2 | W174: =VLOOKUP(H174,Database!$B$1:$E$4891,4,FALSE) ->  | X174: TRUE
A175: 170 | I175: =IF(ISERROR(VLOOKUP(H175,Database!$B$1:$C$5908,2,FALSE)),"",VLOOKUP(H175,Database!$B$1:$C$5908,2,FALSE)) ->  | U175: FALSE | V175: 2 | W175: =VLOOKUP(H175,Database!$B$1:$E$4891,4,FALSE) ->  | X175: TRUE
A176: 171 | I176: =IF(ISERROR(VLOOKUP(H176,Database!$B$1:$C$5908,2,FALSE)),"",VLOOKUP(H176,Database!$B$1:$C$5908,2,FALSE)) ->  | U176: FALSE | V176: 2 | W176: =VLOOKUP(H176,Database!$B$1:$E$4891,4,FALSE) ->  | X176: TRUE
A177: 172 | I177: =IF(ISERROR(VLOOKUP(H177,Database!$B$1:$C$5908,2,FALSE)),"",VLOOKUP(H177,Database!$B$1:$C$5908,2,FALSE)) ->  | U177: FALSE | V177: 2 | W177: =VLOOKUP(H177,Database!$B$1:$E$4891,4,FALSE) ->  | X177: TRUE
A178: 173 | I178: =IF(ISERROR(VLOOKUP(H178,Database!$B$1:$C$5908,2,FALSE)),"",VLOOKUP(H178,Database!$B$1:$C$5908,2,FALSE)) ->  | U178: FALSE | V178: 2 | W178: =VLOOKUP(H178,Database!$B$1:$E$4891,4,FALSE) ->  | X178: TRUE
A179: 174 | I179: =IF(ISERROR(VLOOKUP(H179,Database!$B$1:$C$5908,2,FALSE)),"",VLOOKUP(H179,Database!$B$1:$C$5908,2,FALSE)) ->  | U179: FALSE | V179: 2 | W179: =VLOOKUP(H179,Database!$B$1:$E$4891,4,FALSE) ->  | X179: TRUE
A180: 175 | I180: =IF(ISERROR(VLOOKUP(H180,Database!$B$1:$C$5908,2,FALSE)),"",VLOOKUP(H180,Database!$B$1:$C$5908,2,FALSE)) ->  | U180: FALSE | V180: 2 | W180: =VLOOKUP(H180,Database!$B$1:$E$4891,4,FALSE) ->  | X180: TRUE
A181: 176 | I181: =IF(ISERROR(VLOOKUP(H181,Database!$B$1:$C$5908,2,FALSE)),"",VLOOKUP(H181,Database!$B$1:$C$5908,2,FALSE)) ->  | U181: FALSE | V181: 2 | W181: =VLOOKUP(H181,Database!$B$1:$E$4891,4,FALSE) ->  | X181: TRUE
A182: 177 | I182: =IF(ISERROR(VLOOKUP(H182,Database!$B$1:$C$5908,2,FALSE)),"",VLOOKUP(H182,Database!$B$1:$C$5908,2,FALSE)) ->  | U182: FALSE | V182: 2 | W182: =VLOOKUP(H182,Database!$B$1:$E$4891,4,FALSE) ->  | X182: TRUE
A183: 178 | I183: =IF(ISERROR(VLOOKUP(H183,Database!$B$1:$C$5908,2,FALSE)),"",VLOOKUP(H183,Database!$B$1:$C$5908,2,FALSE)) ->  | U183: FALSE | V183: 2 | W183: =VLOOKUP(H183,Database!$B$1:$E$4891,4,FALSE) ->  | X183: TRUE
A184: 179 | I184: =IF(ISERROR(VLOOKUP(H184,Database!$B$1:$C$5908,2,FALSE)),"",VLOOKUP(H184,Database!$B$1:$C$5908,2,FALSE)) ->  | U184: FALSE | V184: 2 | W184: =VLOOKUP(H184,Database!$B$1:$E$4891,4,FALSE) ->  | X184: TRUE
A185: 180 | I185: =IF(ISERROR(VLOOKUP(H185,Database!$B$1:$C$5908,2,FALSE)),"",VLOOKUP(H185,Database!$B$1:$C$5908,2,FALSE)) ->  | U185: FALSE | V185: 2 | W185: =VLOOKUP(H185,Database!$B$1:$E$4891,4,FALSE) ->  | X185: TRUE
A186: 181 | I186: =IF(ISERROR(VLOOKUP(H186,Database!$B$1:$C$5908,2,FALSE)),"",VLOOKUP(H186,Database!$B$1:$C$5908,2,FALSE)) ->  | U186: FALSE | V186: 2 | W186: =VLOOKUP(H186,Database!$B$1:$E$4891,4,FALSE) ->  | X186: TRUE
A187: 182 | I187: =IF(ISERROR(VLOOKUP(H187,Database!$B$1:$C$5908,2,FALSE)),"",VLOOKUP(H187,Database!$B$1:$C$5908,2,FALSE)) ->  | U187: FALSE | V187: 2 | W187: =VLOOKUP(H187,Database!$B$1:$E$4891,4,FALSE) ->  | X187: TRUE
A188: 183 | I188: =IF(ISERROR(VLOOKUP(H188,Database!$B$1:$C$5908,2,FALSE)),"",VLOOKUP(H188,Database!$B$1:$C$5908,2,FALSE)) ->  | U188: FALSE | V188: 2 | W188: =VLOOKUP(H188,Database!$B$1:$E$4891,4,FALSE) ->  | X188: TRUE
A189: 184 | I189: =IF(ISERROR(VLOOKUP(H189,Database!$B$1:$C$5908,2,FALSE)),"",VLOOKUP(H189,Database!$B$1:$C$5908,2,FALSE)) ->  | U189: FALSE | V189: 2 | W189: =VLOOKUP(H189,Database!$B$1:$E$4891,4,FALSE) ->  | X189: TRUE
A190: 185 | I190: =IF(ISERROR(VLOOKUP(H190,Database!$B$1:$C$5908,2,FALSE)),"",VLOOKUP(H190,Database!$B$1:$C$5908,2,FALSE)) ->  | U190: FALSE | V190: 2 | W190: =VLOOKUP(H190,Database!$B$1:$E$4891,4,FALSE) ->  | X190: TRUE
A191: 186 | I191: =IF(ISERROR(VLOOKUP(H191,Database!$B$1:$C$5908,2,FALSE)),"",VLOOKUP(H191,Database!$B$1:$C$5908,2,FALSE)) ->  | U191: FALSE | V191: 2 | W191: =VLOOKUP(H191,Database!$B$1:$E$4891,4,FALSE) ->  | X191: TRUE
A192: 187 | I192: =IF(ISERROR(VLOOKUP(H192,Database!$B$1:$C$5908,2,FALSE)),"",VLOOKUP(H192,Database!$B$1:$C$5908,2,FALSE)) ->  | U192: FALSE | V192: 2 | W192: =VLOOKUP(H192,Database!$B$1:$E$4891,4,FALSE) ->  | X192: TRUE
A193: 188 | I193: =IF(ISERROR(VLOOKUP(H193,Database!$B$1:$C$5908,2,FALSE)),"",VLOOKUP(H193,Database!$B$1:$C$5908,2,FALSE)) ->  | U193: FALSE | V193: 2 | W193: =VLOOKUP(H193,Database!$B$1:$E$4891,4,FALSE) ->  | X193: TRUE
A194: 189 | I194: =IF(ISERROR(VLOOKUP(H194,Database!$B$1:$C$5908,2,FALSE)),"",VLOOKUP(H194,Database!$B$1:$C$5908,2,FALSE)) ->  | U194: FALSE | V194: 2 | W194: =VLOOKUP(H194,Database!$B$1:$E$4891,4,FALSE) ->  | X194: TRUE
A195: 190 | I195: =IF(ISERROR(VLOOKUP(H195,Database!$B$1:$C$5908,2,FALSE)),"",VLOOKUP(H195,Database!$B$1:$C$5908,2,FALSE)) ->  | U195: FALSE | V195: 2 | W195: =VLOOKUP(H195,Database!$B$1:$E$4891,4,FALSE) ->  | X195: TRUE
A196: 191 | I196: =IF(ISERROR(VLOOKUP(H196,Database!$B$1:$C$5908,2,FALSE)),"",VLOOKUP(H196,Database!$B$1:$C$5908,2,FALSE)) ->  | U196: FALSE | V196: 2 | W196: =VLOOKUP(H196,Database!$B$1:$E$4891,4,FALSE) ->  | X196: TRUE
A197: 192 | I197: =IF(ISERROR(VLOOKUP(H197,Database!$B$1:$C$5908,2,FALSE)),"",VLOOKUP(H197,Database!$B$1:$C$5908,2,FALSE)) ->  | U197: FALSE | V197: 2 | W197: =VLOOKUP(H197,Database!$B$1:$E$4891,4,FALSE) ->  | X197: TRUE
A198: 193 | I198: =IF(ISERROR(VLOOKUP(H198,Database!$B$1:$C$5908,2,FALSE)),"",VLOOKUP(H198,Database!$B$1:$C$5908,2,FALSE)) ->  | U198: FALSE | V198: 2 | W198: =VLOOKUP(H198,Database!$B$1:$E$4891,4,FALSE) ->  | X198: TRUE
A199: =A198+1 -> 194 | I199: =IF(ISERROR(VLOOKUP(H199,Database!$B$1:$C$5908,2,FALSE)),"",VLOOKUP(H199,Database!$B$1:$C$5908,2,FALSE)) ->  | J199: =IF(V199=1,1,IF(AND(T199=0,F199="SSB",V199<>""),2,IF(AND(T199=0,F199="FM",V199<>""),2,IF(AND(T199=0,F199="DIGI",V199<>""),3,IF(AND(T199=0,F199="CW",V199<>""),5,IF(H199="-","",T199)))))) ->  | K199: =IF(H199="-","",IF(AND(H199<>"",X199=TRUE),"INDIPENDENT",IF(W199=0,"SCRIVI NOME NELLE NOTE",W199))) ->  | T199: =IF(H199="","",IF(H199=$R$6,25,IF(OR(H199=$R$7,H199=$R$8,H199=$R$9,H199=$R$10,H199=$R$11,H199=$R$12,H199=$R$13,H199=$R$14,H199=$R$15,H199=$R$16,H199=$R$17,H199=$R$18,H199=$R$19,H199=$R$20,H199=$R$21,H199=$R$22,H199=$R$23),15,0))) ->  | U199: =ISERROR(I199) -> FALSE | V199: 2 | W199: =VLOOKUP(H199,Database!$B$1:$E$4891,4,FALSE) ->  | X199: =ISERROR(W199) -> TRUE
A200: 195 | I200: =IF(ISERROR(VLOOKUP(H200,Database!$B$1:$C$5908,2,FALSE)),"",VLOOKUP(H200,Database!$B$1:$C$5908,2,FALSE)) ->  | U200: FALSE | V200: =IF(H200="-","",IF(AND(T200=0,U200=FALSE,I200=""),1,2)) -> 2 | W200: =VLOOKUP(H200,Database!$B$1:$E$4891,4,FALSE) ->  | X200: TRUE
... 2050 more rows

Sheet Statisti
G3: STATISTICA CONTEST

Sheet Database
A1: N° | B1: NOMINATIVO | C1: N° ASSOC. | D1: ASSOCIAZIONE | E1: NOME | F1: DATABASE AGGIORNATO AL | G1: 2016-09-10 | H1: Righe prenotate fino a 5001
A2: =ROW(A1) -> 1 | B2: IT9MRM | C2: MI001 | D2: ARMI | E2: ALBERTO
A3: =ROW(A2) -> 2 | B3: IT9QQL | C3: MI002 | D3: ARMI | E3: NICOLA
A4: =ROW(A3) -> 3 | B4: IT9PIY | C4: MI003 | D4: ARMI | E4: RAFFAELE | F4: Associazione | G4: Totali Associati | H4: Ultimo Socio | I4: Totali
A5: 4 | B5: IK4NYY | C5: MI005 | D5: ARMI | E5: ELIO | F5: ARMI | G5: =COUNTIF(D3:D4888,"ARMI")+1 -> 1262 | H5: =VLOOKUP(I5,A3:E4888,3) -> MI1354 | I5: =G5 -> 1262
A6: 5 | B6: IZ7ANO | C6: MI007 | D6: ARMI | E6: LEONARDO | F6: BMARS | G6: =COUNTIF(D3:D4888,"BMARS") -> 121 | H6: =VLOOKUP(I6,A3:E4888,3) -> BM146 | I6: =I5+G6 -> 1383
A7: 6 | B7: IK2SOE | C7: MI008 | D7: ARMI | E7: ANDREA | F7: FNARS | G7: =COUNTIF(D4:D4889,"FNARS") -> 54 | H7: FN600 | I7: 1437
A8: 7 | B8: IK6IJF | C8: MI009 | D8: ARMI | E8: ALFREDO | F8: INORC | G8: =COUNTIF(D5:D4890,"INORC") -> 260 | H8: IN648 | I8: 1697
A9: 8 | B9: IT9WKX | C9: MI010 | D9: ARMI | E9: VITTORIO | F9: MARAC | G9: =COUNTIF(D6:D4891,"MARAC") -> 183 | H9: MA1000 | I9: 1880
A10: 9 | B10: IK1DQW | C10: MI011 | D10: ARMI | E10: ADOLFO | F10: MF | G10: =COUNTIF(D7:D4894,"MF") -> 373 | H10: =VLOOKUP(I10,A7:E4894,3) -> MF570 | I10: 2253
A11: 10 | B11: I8XTX | C11: MI012 | D11: ARMI | E11: PASQUALE | F11: MFCA | G11: =COUNTIF(D8:D4895,"MFCA") -> 127 | H11: =VLOOKUP(I11,A8:E4895,3) -> CA300 | I11: 2380
A12: 11 | B12: IK4WLG | C12: MI013 | D12: ARMI | E12: LUIGI | F12: NRA | G12: =COUNTIF(D9:D4896,"NRA") -> 93 | H12: =VLOOKUP(I12,A9:E4896,3) -> PN077 | I12: 2473
A13: 12 | B13: IT9DTU | C13: MI014 | D13: ARMI | E13: NUNZIO | F13: RNARS | G13: =COUNTIF(D10:D4897,"RNARS") -> 800 | H13: =VLOOKUP(I13,A10:E4897,3) -> RN4923 | I13: 3273
A14: 13 | B14: IC8GVV | C14: MI015 | D14: ARMI | E14: LUIGI | F14: YOMARC | G14: =COUNTIF(D11:D4898,"YOMARC") -> 113 | H14: =VLOOKUP(I14,A11:E4898,3) -> YO129 | I14: 3386
A15: 14 | B15: IK0YKK | C15: MI016 | D15: ARMI | E15: PIERPAOLO | F15: TOTALE | G15: =SUM(G5:G14) -> 3386 | H15: DATABASE | I15: =I14 -> 3386
A16: 15 | B16: IZ2CDQ | C16: MI017 | D16: ARMI | E16: GIOVANNI
A17: 16 | B17: IC8CQF | C17: MI019 | D17: ARMI | E17: PASQUALE
A18: 17 | B18: I5DOF | C18: MI020 | D18: ARMI | E18: FRANCO
A19: 18 | B19: IK1MVX | C19: MI021 | D19: ARMI | E19: ANDREA
A20: 19 | B20: IK2PYX | C20: MI022 | D20: ARMI | E20: PIERLUIGI
A21: 20 | B21: IK8VKW | C21: MI024 | D21: ARMI | E21: FRANCESCO
A22: 21 | B22: IW7BWW | C22: MI025 | D22: ARMI | E22: VINCENZO
A23: 22 | B23: IT9YMX | C23: MI026 | D23: ARMI | E23: CARLO
A24: 23 | B24: IT9WDY | C24: MI027 | D24: ARMI | E24: ALFONSO
A25: 24 | B25: IK8YSV | C25: MI028 | D25: ARMI | E25: MASSIMO
A26: 25 | B26: I7TZU | C26: MI029 | D26: ARMI | E26: FERNANDO
A27: 26 | B27: IV3UHX | C27: MI030 | D27: ARMI | E27: VINICIO
A28: 27 | B28: I6HWD | C28: MI031 | D28: ARMI | E28: DOMENICO
A29: 28 | B29: IZ8AZC | C29: MI032 | D29: ARMI | E29: VINCENZO
A30: 29 | B30: IK6VHL | C30: MI033 | D30: ARMI | E30: FABIO
A31: 30 | B31: IZ1ELP | C31: MI034 | D31: ARMI | E31: EDGARDO
A32: 31 | B32: I6BQI | C32: MI035 | D32: ARMI | E32: ANGELO
A33: 32 | B33: I6FDJ | C33: MI036 | D33: ARMI | E33: FILIPPO
A34: 33 | B34: IW2LRJ | C34: MI037 | D34: ARMI | E34: ZERLINO
A35: 34 | B35: IW2JQT | C35: MI038 | D35: ARMI | E35: STEFANO
A36: 35 | B36: I4JCJ | C36: MI039 | D36: ARMI | E36: GIOVANNI
A37: 36 | B37: I0DFY | C37: MI040 | D37: ARMI | E37: DOMENICO
A38: 37 | B38: IZ6EGW | C38: MI041 | D38: ARMI | E38: ERCOLE
A39: 38 | B39: IK0XFW | C39: MI042 | D39: ARMI | E39: MATTEO
A40: 39 | B40: I7WYF | C40: MI043 | D40: ARMI | E40: FRANCO
A41: 40 | B41: IK6IOK | C41: MI044 | D41: ARMI | E41: WALTER
A42: 41 | B42: IK1BES | C42: MI045 | D42: ARMI | E42: GUIDO
A43: 42 | B43: IV3-1069 | C43: MI046 | D43: ARMI | E43: MARIO
A44: 43 | B44: IW3FLC | C44: MI047 | D44: ARMI | E44: RAFFAELE
A45: 44 | B45: IK1DLW | C45: MI048 | D45: ARMI | E45: GIOVANNI
A46: 45 | B46: IK3ZBD | C46: MI049 | D46: ARMI | E46: ANTONIO
A47: 46 | B47: IV3ZUY | C47: MI050 | D47: ARMI | E47: GIOVANNI
A48: 47 | B48: IK5EED | C48: MI051 | D48: ARMI | E48: ASPASIO
A49: 48 | B49: IZ0CDM | C49: MI052 | D49: ARMI | E49: ROBERTO
A50: 49 | B50: ON4CBM | C50: MI053 | D50: ARMI | E50: BERT
A51: 50 | B51: IZ0DGI | C51: MI054 | D51: ARMI | E51: GIANCARLO
A52: 51 | B52: IK4PNE | C52: MI056 | D52: ARMI | E52: PAOLO
A53: 52 | B53: IK7AGH | C53: MI057 | D53: ARMI | E53: VITTORIO
A54: 53 | B54: I8HXG | C54: MI058 | D54: ARMI | E54: GIUSEPPE
A55: 54 | B55: I2AZ | C55: MI060 | D55: ARMI | E55: GIUSEPPE
A56: 55 | B56: IT9RUT | C56: MI062 | D56: ARMI | E56: SEBASTIANO
A57: 56 | B57: IW9FQJ | C57: MI063 | D57: ARMI | E57: FABIO
A58: 57 | B58: KE6CVH | C58: MI064 | D58: ARMI | E58: MIKE
A59: 58 | B59: IK6UGD | C59: MI065 | D59: ARMI | E59: CLAUDIO
A60: 59 | B60: IK6PUO | C60: MI066 | D60: ARMI | E60: FILIPPO
A61: 60 | B61: IZ8EQK | C61: MI067 | D61: ARMI | E61: GIUSEPPE
A62: 61 | B62: I7OXH | C62: MI068 | D62: ARMI | E62: ALDO
A63: 62 | B63: IW2NKY | C63: MI069 | D63: ARMI | E63: GIUSEPPE
A64: 63 | B64: I0AIL | C64: MI070 | D64: ARMI | E64: GIANCARLO
A65: 64 | B65: IW2NXN | C65: MI071 | D65: ARMI | E65: CARLO
A66: 65 | B66: IZ4BYD | C66: MI072 | D66: ARMI | E66: FRANCO
A67: 66 | B67: IZ0EGC | C67: MI073 | D67: ARMI | E67: CARLO
A68: =ROW(A67) -> 67 | B68: IV3AJZ | C68: MI074 | D68: ARMI | E68: CLAUDIO
A69: 68 | B69: IZ8FCN | C69: MI075 | D69: ARMI | E69: ALESSANDRO
A70: 69 | B70: I5NQK | C70: MI076 | D70: ARMI | E70: ANTONIO
A71: 70 | B71: IT9EJW | C71: MI077 | D71: ARMI | E71: ALFIO
A72: 71 | B72: IW2NBV | C72: MI078 | D72: ARMI | E72: ALESSIO
A73: 72 | B73: IW2LGL | C73: MI079 | D73: ARMI | E73: RENATO
A74: 73 | B74: IZ7EDQ | C74: MI080 | D74: ARMI | E74: LEONARDO
A75: 74 | B75: IT9MNW | C75: MI081 | D75: ARMI | E75: GIOVANNI
A76: 75 | B76: DL0MF | C76: MI082 | D76: ARMI | E76: MARINEFUNKER
A77: 76 | B77: I7HQS | C77: MI083 | D77: ARMI | E77: GIUSEPPE
A78: 77 | B78: IZ2NAB | C78: MI084 | D78: ARMI | E78: GIANCARLO
A79: 78 | B79: IK1MAJ | C79: MI085 | D79: ARMI | E79: BRUNO
A80: 79 | B80: IZ0AIO | C80: MI086 | D80: ARMI | E80: ANGELO
A81: 80 | B81: IZ7HNO | C81: MI087 | D81: ARMI | E81: BARTOLOMEO
A82: 81 | B82: DP1POL | C82: MI088 | D82: ARMI | E82: FELIX
A83: 82 | B83: IV3XYM | C83: MI089 | D83: ARMI | E83: ALESSANDRO
A84: 83 | B84: IK1NLZ | C84: MI090 | D84: ARMI | E84: PAOLO
A85: 84 | B85: IW8EHK | C85: MI091 | D85: ARMI | E85: ALESSANDRO
A86: 85 | B86: IK0OZB | C86: MI092 | D86: ARMI | E86: LUIGI
A87: 86 | B87: IW7CYA | C87: MI093 | D87: ARMI | E87: MASSIMILIANO
A88: 87 | B88: IV3PTU | C88: MI094 | D88: ARMI | E88: FRANCO
A89: 88 | B89: IM0SDX | C89: MI095 | D89: ARMI | E89: PIERGIORGIO
A90: 89 | B90: IW3IE | C90: MI096 | D90: ARMI | E90: GIACOMO
A91: 90 | B91: IZ7AUH | C91: MI097 | D91: ARMI | E91: FRANCESCO
A92: 91 | B92: IW3ICC | C92: MI098 | D92: ARMI | E92: VIVIAN
A93: 92 | B93: IK4-1781 | C93: MI099 | D93: ARMI | E93: DUZZI
A94: 93 | B94: IK1QLD | C94: MI100 | D94: ARMI | E94: ANGELO
A95: 94 | B95: IW9GXT | C95: MI101 | D95: ARMI | E95: DANIELE
A96: 95 | B96: IK2QBA | C96: MI102 | D96: ARMI | E96: ENRICO
A97: 96 | B97: IW8EYM | C97: MI103 | D97: ARMI | E97: DAVIDE
A98: 97 | B98: IK6ZTK | C98: MI104 | D98: ARMI | E98: MARINO
A99: 98 | B99: IZ1GTB | C99: MI105 | D99: ARMI | E99: CLAUDIO
A100: 99 | B100: IK0JFS | C100: MI106 | D100: ARMI | E100: COSMO
A101: 100 | B101: IV3GCD | C101: MI107 | D101: ARMI | E101: STEFANO
A102: 101 | B102: IT9OTF | C102: MI108 | D102: ARMI | E102: FRANCESCO
A103: 102 | B103: SV1UG | C103: MI109 | D103: ARMI | E103: ATHANASIOU
A104: 103 | B104: IW9HCI | C104: MI110 | D104: ARMI | E104: GIACOMO
A105: 104 | B105: IK0WFZ | C105: MI111 | D105: ARMI | E105: ROLANDO
A106: 105 | B106: IZ1EGT | C106: MI112 | D106: ARMI | E106: FABIO
A107: 106 | B107: IZ1CCH | C107: MI113 | D107: ARMI | E107: ORAZIO
A108: 107 | B108: IZ0JSD | C108: MI114 | D108: ARMI | E108: ALESSANDRO
A109: 108 | B109: IW1RLR | C109: MI116 | D109: ARMI | E109: NICOLA
A110: 109 | B110: IK8XVA | C110: MI117 | D110: ARMI | E110: ANTONIO
A111: 110 | B111: IK8TEO | C111: MI118 | D111: ARMI | E111: FRANCESCO
A112: 111 | B112: I1-09/SP | C112: MI119 | D112: ARMI | E112: SALVATORE
A113: 112 | B113: IW1RHG | C113: MI120 | D113: ARMI | E113: MAURO
A114: 113 | B114: IT9PPX | C114: MI121 | D114: ARMI | E114: GIOVANNI
A115: 114 | B115: IV3DVE | C115: MI123 | D115: ARMI | E115: CORRADO
A116: 115 | B116: IZ0FKO | C116: MI124 | D116: ARMI | E116: STEFANO
A117: 116 | B117: ON4CBI | C117: MI125 | D117: ARMI | E117: CHRISTIANE
A118: 117 | B118: IW9EFS | C118: MI126 | D118: ARMI | E118: ANTONINO
A119: 118 | B119: IT9YDY | C119: MI127 | D119: ARMI | E119: CARLO
A120: 119 | B120: IW9BMQ | C120: MI129 | D120: ARMI | E120: MADDALENA
A121: 120 | B121: IT9PLM | C121: MI130 | D121: ARMI | E121: GIOVANNI
A122: 121 | B122: IW8EYK | C122: MI131 | D122: ARMI | E122: SERGIO
A123: 122 | B123: I8JYK | C123: MI132 | D123: ARMI | E123: LUIGI
A124: 123 | B124: I6KIU | C124: MI133 | D124: ARMI | E124: ANTONIO
A125: 124 | B125: IW1RHR | C125: MI134 | D125: ARMI | E125: ROBERTO
A126: 125 | B126: IW2EJH | C126: MI135 | D126: ARMI | E126: MARINO
A127: 126 | B127: IW3HER | C127: MI136 | D127: ARMI | E127: LORENZO
A128: 127 | B128: IT9HTL | C128: MI137 | D128: ARMI | E128: FILIPPO
A129: 128 | B129: IZ7DOG | C129: MI138 | D129: ARMI | E129: VITO
A130: 129 | B130: IZ1FGY | C130: MI139 | D130: ARMI | E130: HERVÈ
A131: 130 | B131: IZ2GAL | C131: MI140 | D131: ARMI | E131: SILVIO
A132: =ROW(A131) -> 131 | B132: IS0RYD | C132: MI141 | D132: ARMI | E132: MARCO
A133: 132 | B133: IW6CZF | C133: MI142 | D133: ARMI | E133: GIOVANNI
A134: 133 | B134: IZ8FAV | C134: MI143 | D134: ARMI | E134: GIORGIO
A135: =ROW(#REF!) ->  | B135: IK8MFA | C135: MI145 | D135: ARMI | E135: PIER
A136: 135 | B136: IK2CGH | C136: MI146 | D136: ARMI | E136: GIOACCHINO
A137: 136 | B137: IS0IGV | C137: MI147 | D137: ARMI | E137: GIANNI
A138: 137 | B138: IZ7CDE | C138: MI148 | D138: ARMI | E138: MARCO
A139: 138 | B139: I4IZZ | C139: MI149 | D139: ARMI | E139: SANDRO
A140: 139 | B140: I4RZJ | C140: MI150 | D140: ARMI | E140: GIOVANNI
A141: 140 | B141: IZ8EDG | C141: MI151 | D141: ARMI | E141: CARMINE
A142: 141 | B142: IT9JCF | C142: MI152 | D142: ARMI | E142: GILIBERTO
A143: 142 | B143: IZ7FUL | C143: MI153 | D143: ARMI | E143: NICOLA
A144: 143 | B144: I1SAF | C144: MI154 | D144: ARMI | E144: GIULIANO
A145: 144 | B145: IZ1FCF | C145: MI155 | D145: ARMI | E145: FABRIZIO
A146: 145 | B146: IW1QQV | C146: MI156 | D146: ARMI | E146: ALESSIO
A147: 146 | B147: IK6IHK | C147: MI157 | D147: ARMI | E147: LUCA
A148: 147 | B148: IW5EH | C148: MI158 | D148: ARMI | E148: PAOLO
A149: 148 | B149: IT9DFA | C149: MI159 | D149: ARMI | E149: MASSIMILIANO
A150: 149 | B150: IZ6FHZ | C150: MI160 | D150: ARMI | E150: ROSVELDO
A151: 150 | B151: IT9STX | C151: MI162 | D151: ARMI | E151: ROBERTO
A152: 151 | B152: IT9WMB | C152: MI163 | D152: ARMI | E152: VINCENZO
A153: 152 | B153: IZ6FUR | C153: MI164 | D153: ARMI | E153: ODDONE
A154: 153 | B154: IW0FUT | C154: MI165 | D154: ARMI | E154: GIOVANNI
A155: 154 | B155: IZ6FTX | C155: MI166 | D155: ARMI | E155: GIOVANNI
A156: 155 | B156: IT9XCV | C156: MI167 | D156: ARMI | E156: SALVATORE
A157: 156 | B157: IV3TWP | C157: MI168 | D157: ARMI | E157: GIORGIO
A158: 157 | B158: IK1XHN | C158: MI169 | D158: ARMI | E158: DANILO
A159: 158 | B159: IW3IAQ | C159: MI170 | D159: ARMI | E159: STEFANO
A160: 159 | B160: IZ2FRG | C160: MI171 | D160: ARMI | E160: GIUSEPPE
A161: 160 | B161: IS0MKX | C161: MI172 | D161: ARMI | E161: GIUSEPPE
A162: 161 | B162: IT9IJI | C162: MI173 | D162: ARMI | E162: GIUSEPPE
A163: 162 | B163: IK7TAM | C163: MI174 | D163: ARMI | E163: DOMENICO
A164: 163 | B164: IZ3HPH | C164: MI176 | D164: ARMI | E164: GIANCARLO
A165: 164 | B165: IT9JDB | C165: MI177 | D165: ARMI | E165: ONOFRIO
A166: 165 | B166: IZ8GCB | C166: MI178 | D166: ARMI | E166: GAETANO
A167: 166 | B167: IK2IZY | C167: MI180 | D167: ARMI | E167: PAOLO
A168: 167 | B168: IC8PSO | C168: MI181 | D168: ARMI | E168: FABIEN
A169: 168 | B169: IZ7ETP | C169: MI182 | D169: ARMI | E169: MICHELE
A170: 169 | B170: IV3JTG | C170: MI183 | D170: ARMI | E170: MAURO
A171: 170 | B171: IK7TVE | C171: MI184 | D171: ARMI | E171: PASQUALE
A172: 171 | B172: IZ6DWH | C172: MI185 | D172: ARMI | E172: SALVATORE
A173: 172 | B173: IV3HAE | C173: MI187 | D173: ARMI | E173: FULVIO
A174: 173 | B174: IZ1HGP | C174: MI188 | D174: ARMI | E174: GIORGIO
A175: 174 | B175: IW9HMA | C175: MI189 | D175: ARMI | E175: NICOLA
A176: 175 | B176: IW9HMB | C176: MI190 | D176: ARMI | E176: DOMENICO
A177: 176 | B177: IT9KPE | C177: MI191 | D177: ARMI | E177: GIUSEPPE
A178: 177 | B178: IW9CBN | C178: MI192 | D178: ARMI | E178: BENEDETTO
A179: 178 | B179: IK0AAE | C179: MI193 | D179: ARMI | E179: DAMIANO
A180: 179 | B180: IW3ILA | C180: MI194 | D180: ARMI | E180: PAOLO
A181: 180 | B181: IW9GSP | C181: MI195 | D181: ARMI | E181: NICOLA
A182: 181 | B182: IW9GZI | C182: MI196 | D182: ARMI | E182: SAVERIO
A183: 182 | B183: IZ0GIF | C183: MI197 | D183: ARMI | E183: ERMINIO
A184: 183 | B184: I7HMP | C184: MI198 | D184: ARMI | E184: PASQUALE
A185: 184 | B185: EA8AJX | C185: MI199 | D185: ARMI | E185: LORENZO
A186: 185 | B186: ON4BRN | C186: MI200 | D186: ARMI | E186: B.M.A.R.S.
A187: 186 | B187: IW3RMV | C187: MI201 | D187: ARMI | E187: MARCO
A188: 187 | B188: W1QWT | C188: MI203 | D188: ARMI | E188: BOB
A189: 188 | B189: OE6NFK | C189: MI204 | D189: ARMI | E189: WERNER
A190: 189 | B190: IW2NZR | C190: MI205 | D190: ARMI | E190: DAVIDE
A191: 190 | B191: IZ8HNC | C191: MI206 | D191: ARMI | E191: DOMENICO
A192: 191 | B192: IK2WIU | C192: MI207 | D192: ARMI | E192: CARLO
A193: 192 | B193: IW0HPH | C193: MI208 | D193: ARMI | E193: OSCAR
A194: 193 | B194: IT9RYK | C194: MI209 | D194: ARMI | E194: PIETRO
A195: =ROW(A194) -> 194 | B195: G3LIK | C195: MI210 | D195: ARMI | E195: MICK
A196: 195 | B196: KA2ZJE | C196: MI211 | D196: ARMI | E196: IRVING
A197: 196 | B197: IZ1DLZ | C197: MI212 | D197: ARMI | E197: RICCARDO
A198: 197 | B198: IK1FVO | C198: MI213 | D198: ARMI | E198: MASSIMO
A199: 198 | B199: ON4CKZ | C199: MI214 | D199: ARMI | E199: RYCKAERT
A200: 199 | B200: IT9BQK | C200: MI215 | D200: ARMI | E200: FABIO
... 4801 more rows

Sheet info
D1: L I B E R A T O R I A
D2: Gli Autori dichiarano che il file è privo di virus trojan e quant'altro a carattere distruttivo,
D3: e declinano ogni responsabilità per il suo uso.
D4: Pertanto l'utilizzatore usa il file a suo rischio e pericolo e premendo il tasto HOMEaccetta,
D5: assumendone la responsabilità, altrimendi rifiuta chiudendo il file con i normali
D6: sistemi di Office o Window
D10: =new!B2 -> SHIP RADIO STATION
D11: LOG DI STAZIONE
D13: I S T R U Z I O N I
D15: PREMESSA: Si raccomanda vivamente di muoversi con gli appositi tasti di navigazione così
D16: da utilizzare le relative macro (formato, moltiplicatore ecc.) necessarie per il continuo
D17: aggiornamento del LOG. Pertanto evitate di mostrare le schede appositamente nascoste.
D19: All'avvio del file excel si aprira sempre alla Home Page anche se si è chiuso su altro foglio.
D21: La prima volta che viene aperto il file, essendo i
D22: dati stazione vuoti, esce l'avviso che chiede se
D23: l'operatore è un SWL. Avendo attivo il tasto
D24: NO premendo invio confermiamo che non siamo
D25: SWL ma OM quindi pronto per i dati stazione.
D26: Invece nel caso di un SWL obbligatoriamente
D27: bisogna spostarsi sul tasto SI e nella cella
D28: categoria apparirà la scritta SWL quindi pronto
D29: per l'inserimento dei dati stazione
D32: Dati stazione nel caso di un SWL (da inserire il
D33: nominativo) poi vedi come OM
D37: Dopo aver stabilito il tipo di stazione, esce
D38: l'avviso che chiede se si sono lette le informazioni
D39: Anche qui il tasto attivo è NO per cui confermando
D40: siete diretti a questo foglio che oltre a contenere
D41: tutte le istruzioni alla fine trovate la liberatoria per
D42: gli autori e il tasto HOME per andare avanti con il
D43: quale accettate l'uso a vostro rischio andando
D44: avanti per l'inserimento dati stazione. Nel caso
D45: che si rifiuta il rischio uscire senza toccare il tasto
D46: Home e chiudere direttamente il file. Scegliendo
D47: il tasto SI il programma continua regolarmente
D48: confermando di aver letto le informazioni e fatta
D49: la scelta della liberatoria.
D52: Nell'inserimento dei dati stazione si potrà avere:
D54: 1) il nominativo viene trovato nel database insieme al nome dell’operatore per cui di
D55: fianco uscirà in automatico la registrazione
D56: all’associazione e il nome nella cella sotto
D57: mentre nella categoria uscirà NAVAL per cui
D58: muovendoci con il TAB lasceremo libera
D59: la cella dell’operatore e saremo pronti per la scelta tra i tasti di navigazione
D61: 2) il nominativo si trova nel database ma manca il nome dell’operatore per cui
D62: leggeremo il numero di registrazione all’associazione al fianco al nominativo e nella
D63: cella sotto l’avviso che non c’è il nome nel DB
D64: per cui spostandoci con il TAB ci fermeremo
D65: nella cella operatore e scriveremo il nome
D66: mentre nella categoria uscirà NAVAL
D67: saremo pronti per la scelta tra i tasti di navigazione
D69: 3) il nominativo non viene trovato nel DB allora di fianco e sotto il nominativo non uscirà
D70: nulla ma nella categoria uscirà Indipendent
D71: quindi si scriverà il nome dell'operatore
D72: nell'apposita casella e saremo pronti per la
D73: scelta tra i tasti di navigazione
D75: Nota: che è inutile preoccuparci se scrivere in maiuscolo o minuscolo poiché in
D76: qualsiasi maniera si scrive automaticamente sarà tutto trasformato in MAIUSCOLO.
D78: Questo discorso è valido anche per i QSO ( tutto maiuscolo) con la sola eccezione della
D79: colonna NOTE in cui avremo sempre il primo carattere in maiuscolo e tutto il resto
D80: minuscolo
D82: Sono state predisposte alcune caselle dove
D83: inserire i dati personali dell'operatore, questo per
D84: dare modo al Manager di contattare subito, tramite
D85: mail, l'operatore qualora ci fossero problemi con
D86: il log ricevuto mentre le altre info servono per
D87: conoscere l'esatto indirizzo dove inviare il diploma
D88: cartaceo evitando una non sempre fruttuosa e
D89: valida ricerca su QRZ.In NOTE si potrà indicare il
D90: telefono, l'avvenuto pagamento ecc.ecc.
D91: Si prega vivamente di riempire queste caselle che
D92: saranno utilizzati solo per l'invio di mail o diploma
D95: In basso a sinistra della Home è stato posizionato il calcolo del punteggio
D96: Si ha la somma parziale che rappresenta la
D97: somma della colonna punti del LOG relativa ai
D98: QSO, moltiplicatore che è il numero delle
D99: stazioni collegate prese in considerazione
D100: una sola volta, comprese le Jolly, mentre la
D101: somma totale è somma parziale per moltiplicatore.
D105: questo tasto ci porta al foglio delle informazioni il quale risulta già consultato all'avvio per la
D106: prima volta del file ma puo' ritornare utile se ci cerca qualche spiegazioni
D107: .
D109: questo tasto ci porta al regolamento del Diploma
D113: questo tasto ci porta al Log dove andremo ad inserire tutti i QSO e tutte le volte che apriremo
D114: il log la cella attiva sarà la prima utile per l'iserimento del qso
D116: Per velocizzare al massimo l’inserimento del QSO dobbiamo inserire i dati in questo
D117: modo:
D122: nel formato ggmmaaaa
D123: Non preoccupatevi di inserire le barre (/) poiché queste saranno inserite automaticamente
D124: alla chiusura del foglio.
D126: NOTA: la data deve essere SEMPRE inserita e non ci dovrà essere mai una cella vuota!!!!
D132: nel formato hhmm
D133: Non preoccupatevi di inserire due punti (:) saranno inseriti automaticamente alla chiusura
D134: del foglio.
D139: È stata inserita una finestra a discesa per la scelta della banda comprendendo tutte le bande
D140: HF, secondo il Band Plane IARU. Inserendo a mano mettere solo la banda senza la "m"(metri)
D144: Nella formattazione di queste celle si è tenuto conto dei decimali.
D148: La finestra a discesa contiene i 3 modi stabiliti dal regolamento. CW - SSB - DICI(psk31/rtty)
D149: ATTENZIONE: inserite sempre il modo perché in base al modo verrà dato il punteggio
D153: non presenta particolarità.
D156: non presenta particolarità se non come specificato sopra insieme a modo saranno sempre
D157: in maiuscolo.
D160: mi uscirà automaticamente la sigla e il numero se il call è un Naval altrimenti resterà vuota
D163: uscirà il punteggio per il QSO quindi terrà conto del MODO del tipo di stazione e di tutti i casi
D164: previsti dal regolamento.
D167: qui troveremo come già specificato nell'inserimento del nominativo stazione :
D168: il nome dell'operatore (call e nome nel DB)
D169: la scritta "scrivi nome nelle note"(call nel DB ma manca nome)
D170: la scritta "indipendent" (non c'è nulla nel DB)
D174: inseriremo le eventuali NOTE.La prima lettera della nota sarà maiuscolo il resto tutto
D175: minuscolo
D179: questo tasto non solo ci porta alla Home ma ci consente di aggiornare i dati inseriti nel log
D180: come data e ora nel formato secondo regolamento
D182: si è provveduto a colorare le celle secondo il giorno dei QSO.
D183: Al variare del giorno varia il colore delle celle in questo modo
D184: si ha una visione piu' completa e ordinata del Log
D185: Anche in questo caso le celle si coloreranno quando
D186: usciremo dal foglio e andremo alla Home
D190: questo tasto effettua il controllo del log in cerca di duplicati
D191: vale a dire se erroneamente nello stesso giorno con lo
D192: stessa modo (cs-ssb-dici) si hanno più di un QSO con lo
D193: stesso nominativo.
D194: Alla richiesta verrà mostrato un avviso che vi dirà cosa fare.
D195: I QSO duplicati saranno indicati tutti in rosso in modo
D196: da essere subito riconosciuti. Del nominativo duplicato,
D197: che potranno essere anche più di due, conservarne
D198: uno solo e cancellare manualmente tutti gli altri
D199: inserendo al posto del nominativo duplicato il segno trattino
D200: o meno (-) in modo tale da correggere il punteggio.
D201: Una volta pulito il log dai duplicati si può ripetere subito il
D202: controllo in modo tale da cambiare il colore dei nominativi
D203: che non sono più i duplicati e avere il log in ordine.
D207: questo tasto vi permette di andare a vedere le statistiche
D208: dei qso mostrando due grafici uno per modi e altro per
D209: banda
D210: Il tasto home vi permetterà di ritornare alla HOME pagina
D211: principale del programma.
D218: questo tasto ci porta al database dove sono elencati tutti
D219: i nominativi iscritti alle relative associazioni nonché
D220: eventuale nome di battesimo vale a dire tutti i NAVAL.
D221: Il database puo' essere solo consultato e per questo
D222: troviamo due frecce che servono per andare al
D223: primo nominativo "freccia su" o all'ultimo nominativo
D224: dell'elenco con "freccia giù". Leggeremo nella casella
D225: dedicata la data di aggiornamento del database
D226: NOTA: Solo il Manager può inserire i nuovi nominativi e
D227: tenere aggiornato il database attraverso il suo foglio.
D232: Tasto da essere utilizzato solo dal Manager (richiede una password di accesso)
D234: Inserendo i dati nelle celle grigie automaticamente viene
D235: preparato il Log per il relativo anno.
D236: I dati qui inseriti permettono l'aggiornamento delle formule
D237: nonché tutte quelle voci in cui i dati sono riportati come ad
D238: esempio la Home o nel regolamento.
D239: ATTENZIONE: il tasto "PULISCI" mi permette di pulire
D240: il log qualora ci siano vecchi QSO. Questo puo' avvenire
D241: quando si prepara un nuovo Award.
D247: I tasti Aggiorna e Riordina database invece
D248: permettono l'inserimento e riordino dello stesso
D249: Una volta inseriti i nuovi nominativi si dovrà uscire e
D250: rientrare in manager e utilizzare il tasto riordina.
D251: La colonna associazione dovrà avere tutte le celle occupate altrimenti NON riordina!!!
D253: NOTE IMPORTANTI
D254: Dal secondo avvio in poi non usciranno gli avvisi "sei un QSL" e " letto informazioni"
D256: L’aggiornamento del database può essere fatto solo dal Manager inserendo i nuovi iscritti
D257: NAVAL in fondo alla lista del database (freccia in giù) allo stesso modo di tutti gli altri per
D258: poi aggiornare l'elenco con il relativo tasto e aggiornando la data nella relativa casella
D261: L I B E R A T O R I A
D262: Gli Autori dichiarano che il file è privo di virus trojan e quant'altro a carattere distruttivo,
D263: e declinano ogni responsabilità per il suo uso.
D264: Pertanto l'utilizzatore usa il file a suo rischio e pericolo e premendo il tasto HOMEaccetta,
D265: assumendone la responsabilità, altrimendi rifiuta chiudendo il file con i normali
D266: sistemi di Office o di Window
D271: IZ8OGK - IT9MRM (Giugno 2016)

Sheet Regol
B1: A.R.M.I. & A.R.I.
B2: presentano
B3: REGOLAMENTO
B4: Il Diploma A.R.M.I. denominato "ITALIAN NAVY SHIP RADIO STATIONS" è stato ideato per
B5: ricordare le Stazioni Radio Navali della Marina Militare Italiana. Il Diploma è conseguibile da tutti gli OM e SWL del mondo.
B6: ="Per il "& new!K7&" la stazione Jolly è la stazione radio Nave "&new!K19 -> Per il 2016 la stazione Jolly è la stazione radio Nave Fenice
B7: =new!J19 -> II2IAOG
B8: PERIODO di validità
B9: ="Il diploma avrà inizio "&new!N28& " e si concluderà "&new!N29 -> Il diploma avrà inizio dalle 0001 UTC sabato 10 Settembre e si concluderà alle 2359 UTC domenica 25 Settembre
B10: STAZIONI
B11: Saranno attive le seguenti stazioni:
B12: - Stazioni con nominativo speciale in rappresentanza delle Stazioni Costiere della Marina Militare:
B13: (Elenco riportato sul sito dell’ARMI http://www.assoradiomarinai.it)
B14: - Stazioni iscritte all'A.R.M.I.;
B15: - Stazioni iscritte ad altri Naval Clubs;
B16: - Stazioni indipendenti.
B17: MODI
B18: Sono consentiti i seguenti modi : CW - SSB – DIGI (PSK31 – RTTY)
B19: BANDE
B20: Tutte le bande HF, secondo il Band Plan IARU
B21: PUNTI QSO
B22: QSOs (HRD) con Navy SHIP Radio Stations valgono 15 punti (tutti i modi);
B23: QSOs (HRD) con A.R.M.I. Club e Naval Clubs Stations valgono 5 punti (CW);
B24: QSOs (HRD) con A.R.M.I. Club e Naval Clubs Stations valgono 3 punti (PSK31 / RTTY);
B25: QSOs (HRD) con A.R.M.I. Club e Naval Clubs Stations valgono 2 punti (SSB);
B26: QSOs (HRD) con INDIPENDENT valgono 1 punto (tutti i modi)
B27: ="QSOs (HRD) con la ITALIAN NAVY SHIP RADIO STATIONS JOLLY "&new!J19 & " valgono 25 punti (tutti i modi);" -> QSOs (HRD) con la ITALIAN NAVY SHIP RADIO STATIONS JOLLY II2IAOG valgono 25 punti (tutti i modi);
B29: N.B. : Tutte le stazioni (stazione JOLLY, stazioni NAVAL, stazioni costiere e le stazioni INDIPENDENT),
B30: possono essere collegate solo una volta al giorno per ogni modalità di emissione (SSB – CW – DIGIMODE) e
B31: le stesse per tutto il periodo della gara. Non saranno presi in considerazione tutti i collegamenti doppi.
B32: Esempio:
B33: IT9MRM giorno 10 settembre 2016 14 MHz SSB (vale 2 punti)
B34: IT9MRM giorno 10 settembre 2016 7 MHz CW (vale 5 punti)
B35: IT9MRM giorno 10 settembre 2016 14 MHz PSK-31 (vale 3 punti)
B36: IT9MRM giorno 11 settembre2016 14 MHz SSB (vale 2 punti)
B37: IT9MRM giorno 11 settembre2016 14 MHz PSK-31 (vale 3 punti)
B38: …ecc….
B39: II8IHBC giorno 10 settembre 2016 7 MHz PSK-31 (vale 15 punti)
B40: II8IHBC giorno 10 settembre 2016 14 MHz SSB (vale 15 punti)
B41: II8IHBC giorno 10 settembre 2016 7 MHz CW (vale 15 punti)
B42: II8IHBC giorno 11 settembre2016 7 MHz SSB (vale 15 punti)
B43: II8IHBC giorno 11 settembre2016 14 MHz CW (vale 15 punti)
B44: …ecc…
B45: II2IAOG giorno 10 settembre 2016 14 MHz PSK-31 (vale 25 punti)
B46: II2IAOG giorno 10 settembre 2016 14 MHz SSB (vale 25 punti)
B47: II2IAOG giorno 10 settembre 2016 14 MHz CW (vale 25 punti)
B48: II2IAOG giorno 11 settembre2016 7 MHz SSB (vale 25 punti)
B49: II2IAOG giorno 11 settembre2016 14 MHz CW (vale 25 punti)
B50: …ecc…
B51: MOLTIPLICATORE
B52: per ogni stazione radio navale collegata.
B53: Es. Se al termine della gara ho collegato in tutto 5 stazioni costiere diverse, il mio risultato devo moltiplicarlo per 5.
B54: PUNTI DIPLOMA
B55: Per ottenere il diploma è necessario un minimo di punti come segue :
B56: Stazioni Italiane :50 punti;
B57: Stazione Europee: 25 punti;
B58: Stazioni extra-Europee: 10 punti;
B59: CHIAMATA
B60: La chiamata sarà come segue :
B61: CW / PSK31-RTTY : CQ CQ DE II2IAOG II2IAOG AWARD IT NAVY SHIP RADIO STATIONS K
B62: SSB : CQ CQ da II2IAOG – CHIAMATA PER IL DIPLOMA DELLE STAZIONI RADIO NAVALI DELLA MARINA MILITARE ITALIANA – .
B64: RAPPORTI E NUMERI
B65: Le Stazioni Radio Navali passeranno i rapporti RST seguiti dal numero di iscrizione (MI#).
B66: Le stazioni A.R.M.I. passeranno i rapporti RST seguiti dal numero di iscrizione (MI#)
B67: Le stazioni NAVAL (*) passeranno i rapporti RST seguiti dal numero di iscrizione corrispondente al proprio club (MF# - IN# - RN#....).
B68: CATEGORIE
B69: Sono previste tre categorie :
B70: "NAVAL" per le stazioni ARMI e gli appartenenti ad altri Naval Club (*)
B71: "INDIPENDENT" per tutti gli altri OM
B72: "SWL
B73: SOTTOCATEGORIE
B74: Sono previste tre sottocategorie:
B75: "MIXED" (SSB/CW/PSK31/RTTY)
B76: "PHONE" (SSB)
B77: "MORSE" (CW)
B79: E’ ammessa la partecipazione solo ad una sottocategoria.
B80: PREMI
B81: La stazione che avrà il punteggio più elevato in assoluto, riceverà un premio messo in palio dallo sponsor unico
B82: “PRINTED.IT” Deu Fratelli Bonanno (fornitura di 1000 QSL fronte/retro a colori);
B83: Il punteggio più elevato di ogni Categoria/Sottocategoria riceverà una targa premio;
B84: Per gli SWL è prevista una sola Sottocategoria (MIXED); Per le stazioni costiere, saranno premiati il I°, II° e III° posto con una coppa.
B85: I premi saranno rilasciati per tutte le categorie/sottocategorie, solo se in classifica risulteranno almeno 5 stazioni in concorso.
B86: A tutti i partecipati alla gara e se richiesto tramite EnzoLog sarà inviato totalmente gratuito, un “attestato di partecipazione” in formato PDF.
B88: RICHIESTE
B89: Il Diploma andrà richiesto all' Award manager :
B90: IT9MRM Alberto Mattei - Via E. Millo, 20 - 96011 Augusta (SR) - Italy -
B91: email: it9mrm@gmail.com
B92: La richiesta dell’award deve avvenire on-line tramite EnzoLog, oppure tradizionalmente via posta, farà fede il log inserito.
B93: Il richiedente per partecipare alla gara, deve inviare un contributo di € 10,00 oppure $ 15,00 (USD).
B94: Questo darà diritto a ricevere l’Award in formato cartaceo (con relativa posizione di classifica, modo di partecipazione e punteggio finale)
B95: ed a concorrere per il premio finale (il contributo deve essere versato al termine della gara e non oltre il termine prefissato).
B96: LOGS
B97: Devono essere in formato ADIF ed inseriti automaticamente tramite il sito web “ENZOLog” (Log on-line) al seguente link http://www.enzolog.org/itnavySHIPradio/
B98: In opzione si accettano anche Logs in formato digitale (files tipo .xls, .doc).
B99: E’ concesso l’uso di Log elettronici diversi, importante è che al termine della gara il file ADIF venga inserito su EnzoLog oppure, farlo pervenire all’Award Manager.
B100: Tutti i logs saranno censiti tramite il foglio elettronico per la gestione del diploma, questo sarà l’unico programma ufficiale per poter stilare la classifica.
B101: E’ di massima richiesto a tutti di utilizzare il “Foglio Elettronico per il calcolo del punteggio”, scaricabile da sito web dell’A.R.M.I. (http://www.assoradiomarinai.it)
B102: Tutti i log che riporteranno delle incongruenze, saranno esclusi dalla classifica ed inseriti nella lista dei Control Log.
B103: Le stazioni italiane che lo desiderano, potranno inviare il contributo per il Diploma tramite le seguenti modalità:
B104: - via “POSTEPAY” 4023600645946221 intestata a Mattei Alberto (c.f. MTTLRT63L22I535Z);
B105: - via “PAYPAL” al seguente indirizzo it9mrm@gnail,com
B106: - BONIFICO BANCARIO: IBAN IT64E0306984620100000004132 c/o INTESA-S.PAOLO filiale di Augusta.
B107: SCADENZA
B108: ="Le richieste per il diploma dovranno pervenire non oltre il 30. 11. "&new!K7 -> Le richieste per il diploma dovranno pervenire non oltre il 30. 11. 2016
B109: INFORMAZIONI
B110: Eventuali informazioni in merito alle stazioni partecipanti ed al diploma possono essere prelevate dal sito ufficiale dell’A.R.M.I. http://www.assoradiomarinai.it

Sheet new (hidden)
B2: SHIP RADIO STATION | I2: Foglio ad uso esclusivo del MANAGER
D3: =K7 -> 2016
X6: ANNO | Y6: gg sett. | Z6: gg mese | AA6: mese
J7: ANNO | K7: 2016 | O7: ISTRUZIONI | X7: 2015 | Y7: lunedì | Z7: 1 | AA7: Gennaio
I8: INIZIO | J8: Giorno settimana | K8: sabato | N8: Inserire i dati solo nelle celle grigie che | X8: 2016 | Y8: martedì | Z8: 2 | AA8: Febbraio
J9: Giorno del mese | K9: 10 | N9: verranno automaticamente riportate sia | X9: 2017 | Y9: mercoledì | Z9: 3 | AA9: Marzo
J10: mese | K10: Settembre | N10: nella Home page che nelle formule dove | X10: 2018 | Y10: giovedì | Z10: 4 | AA10: Aprile
J11: ora (utc) | K11: 0001 | N11: necessitano. | X11: 2019 | Y11: venerdì | Z11: 5 | AA11: Maggio
N12: Andando nella cella si aprirà la relativa | X12: 2020 | Y12: sabato | Z12: 6 | AA12: Giugno
I13: FINE | J13: Giorno settimana | K13: domenica | N13: finestra a discesa in modo da scegliere | X13: 2021 | Y13: domenica | Z13: 7 | AA13: Luglio
J14: Giorno del mese | K14: 25 | N14: subito il dato da immettere mentre l'ora | X14: 2022 | Z14: 8 | AA14: Agosto
J15: mese | K15: Settembre | N15: e le stazioni saranno scritte a mano | X15: 2023 | Z15: 9 | AA15: Settembre
J16: ora (utc) | K16: 2359 | X16: 2024 | Z16: 10 | AA16: Ottobre
X17: 2025 | Z17: 11 | AA17: Novembre
J18: STAZIONE | K18: UBICAZIONE | O18: =IF(LOG!B6<>"","A V V I S O ","") ->  | X18: 2026 | Z18: 12 | AA18: Dicembre
I19: JOLLY | J19: II2IAOG | K19: Fenice | N19: =IF(LOG!B6<>"","ATTENZIONE: ci sono dei qso nel LOG","") ->  | X19: 2027 | Z19: 13
I20: 1a | J20: II0IADC | K20: Corsaro 2 | N20: =IF(LOG!B6<>"","di Stazione pertanto se si stanno","") ->  | X20: 2028 | Z20: 14
I21: 2a | J21: II0IATO | K21: Todaro | N21: =IF(LOG!B6<>"","inserendo dati per un nuovo log","") ->  | X21: 2029 | Z21: 15
I22: 3a | J22: II1IAME | K22: Maestrale | N22: =IF(LOG!B6<>"","provvedere a cancellarli prima di","") ->  | X22: 2030 | Z22: 16
I23: 4a | J23: II5IAFR | K23: Canopo | N23: =IF(LOG!B6<>"","chiudere il file utilizzando PULISCI","") ->  | Z23: 17
I24: 5a | J24: II8IHBC | K24: Vesuvio | Z24: 18
I25: 6a | J25: II9IABA | K25: Aretusa | Z25: 19
I26: 7a | J26: II9IACR | K26: De Cristoforo | N26: CONTROLLO DATA | Z26: 20
I27: 8a | J27: II9IHPM | K27: Albatros | Z27: 21
I28: 9a | J28: II5IHLP | K28: Platano | N28: ="dalle "&K11&" UTC "&K8&" "&K9&" "&K10 -> dalle 0001 UTC sabato 10 Settembre | Z28: 22
I29: 10a | N29: ="alle "&K16&" UTC "&K13&" "&K14&" "&K15 -> alle 2359 UTC domenica 25 Settembre | Z29: 23
I30: 11a | Z30: 24
I31: 12a | Z31: 25
I32: 13a | Z32: 26
I33: 14a | Z33: 27
I34: 15a | Z34: 28
I35: 16a | Z35: 29
Z36: 30
Z37: 31

Sheet immagini
B3: 1
B11: 1
B18: 2
B25: 3

Sheet Foglio1
A1: Il Diploma A.R.M.I. denominato “ITALIAN NAVY SHIP RADIO STATIONS” è stato ideato per ricordare le
A2: Stazioni Radio Navali della Marina Militare Italiana dal 1960 ad oggi ed incentivare le radiocomunicazioni
A3: in tutti i modi con tutte le stazioni radioamatoriali. Il Diploma è conseguibile da tutti gli OM e SWL del
A4: mondo. La stazione Jolly per questo evento sarà II0IABH.
A5: PERIODO di validità
A6: Il diploma avrà inizio il 12 settembre 2015 (00:00 UTC) e si concluderà il 27 settembre 2015 (24.00
A7: UTC).
A8: STAZIONI
A9: Saranno attive le seguenti stazioni:
A10: - Stazioni con nominativo speciale in rappresentanza delle Stazioni Radio Navali della Marina Militare
A11: - Stazioni iscritte all’A.R.M.I.;
A12: - Stazioni iscritte ad altri Naval Clubs;
A13: - Stazioni indipendenti.
A14: MODI
A15: Sono consentiti i seguenti modi : CW - SSB – DIGI ( solo PSK31 – RTTY)
A16: BANDE
A17: Tutte le bande HF, secondo il Band Plan IARU
A18: PUNTI QSO
A19: QSOs (HRD) con la IT Navy Ship Radio Station “JOLLY” valgono 25 punti (tutti i modi);
A20: QSOs (HRD) con IT Navy Ship Radio Stations valgono 15 punti (tutti i modi);
A21: QSOs (HRD) con A.R.M.I. Club e Naval Clubs members valgono 5 punti (CW);
A22: QSOs (HRD) con A.R.M.I. Club e Naval Clubs members valgono 3 punti (PSK31 / RTTY);
A23: QSOs (HRD) con A.R.M.I. Club e Naval Clubs members valgono 2 punti (SSB);
A24: QSOs (HRD) con INDIPENDENT stations valgono 1 punto (SSB-CW-DIGI);
A25: http://www.assoradiomarinai.it
A26: MOLTIPLICATORE
A27: per ogni “Ship Radio Stations” collegata.
A28: Es. Se al termine della gara ho collegato in tutto 5 stazioni radio navali diverse, il mio risultato devo
A29: moltiplicarlo per 5.
A30: PUNTI DIPLOMA
A31: Per ottenere il diploma è necessario un minimo di punti come segue :
A32: Stazioni Italiane : 30 punti;
A33: Stazione Europee: 20 punti;
A34: Stazioni extra-Europee: 10 punti;
A35: CHIAMATA
A36: La chiamata sarà come segue :
A37: CW / PSK31-RTTY : CQ CQ DE II0IABH II0IABH AWARD IT NAVY SHIP RADIO STATIONS K
A38: SSB : CQ CQ da II0IABH – CHIAMATA PER IL DIPLOMA DELLE STAZIONI RADIO NAVALI DELLA MARINA
A39: MILITARE ITALIANA – .
A40: RAPPORTI E NUMERI
A41: Le Stazioni Radio Navali passeranno i rapporti RST.
A42: Le stazioni A.R.M.I. passeranno i rapporti RST seguiti dal numero di iscrizione (MI#)
A43: Le stazioni NAVAL (*) passeranno i rapporti RST seguiti dal numero di iscrizione corrispondente al proprio
A44: club (MF# - IN# - RN#....).
A45: CATEGORIE
A46: Sono previste tre categorie :
A47: “NAVAL” per le stazioni ARMI e gli appartenenti ad altri Naval Club (*)
A48: “INDIPENDENT” per tutti gli altri OM
A49: “SWL”
A50: SOTTOCATEGORIE
A51: Sono previste tre sottocategorie:
A52: “MIXED” (SSB/CW/PSK31/RTTY)
A53: “PHONE” (SSB)
A54: “MORSE” (CW)
A55: PREMI
A56: La stazione che avrà ottenuto il punteggio più elevato in assoluto, indipendentemente che sia un NAVAL
A57: o un INDIPENDENT, riceverà un premio donato dalla ditta “PRINTED.IT” dei Fratelli Bonanno (http://
A58: www.printed.it) (consiste in una stampa gratuita di 1000 QSL fronte retro a colori – il fronte sarà plasti-
A59: ficato lucido);
A60: Il punteggio più elevato di ogni Categoria/Sottocategoria riceverà una coppa premio;
A61: Per gli SWL è prevista una sola Sottocategoria (MIXED);
A62: Per le stazioni “Ship Radio Station”, saranno premiati il I°, II° e III° posto con una coppa.
A63: I premi saranno rilasciati per tutte le categorie/sottocategorie, solo se in classifica risulteranno almeno
A64: 5 stazioni in concorso.
A65: A tutti se richiesto tramite EnzoLog sarà inviato un “attestato di partecipazione” in formato PDF.
A66: RICHIESTE
A67: Il Diploma andrà richiesto all’Award manager :
A68: IT9MRM Alberto Mattei - Via E. Millo, 20 - 96011 Augusta (SR) - Italy -
A69: email: it9mrm@gmail.com
A70: La richiesta dell’award deve avvenire on-line tramite EnzoLog, oppure tradizionalmente via posta, farà
A71: fede il log inserito. Il richiedente per partecipare alla gara, deve inviare un contributo di € 10,00 op-
A72: pure $ 15,00 (USD). Questo darà diritto a ricevere l’Award in formato cartaceo (con relativa posizione
A73: di classifica, modo di partecipazione e punteggio finale) ed a concorrere per il premio finale. (Il contributo
A74: deve essere versato al termine della gara).
A75: http://www.assoradiomarinai.it
A76: In opzione si accettano anche Logs in formato digitale (files tipo .xls, .doc).
A77: E’ stato creato un foglio elettronico in Excel denominato ARMISHIPSLOG2015, da scaricare dal sito web
A78: dell’ARMI, questo programma è il foglio elettronico ufficiale per il conteggio dei punti da accreditare.
A79: E’ concesso anche l’uso di altri Log elettronici, importante è che al termine della gara il file ADIF venga
A80: inserito su EnzoLog oppure, farlo pervenire all’Award Manager che provvederà ad inserirlo sul log elettro-
A81: nico, per il controllo ed il conteggio dei punti.
A82: Sarà cura da parte dell’Award Manager controllare a campione i log e i relativi contatti delle stazioni
A83: partecipanti, se ci saranno delle incongruenze, saranno esclusi dalla classifica ed inseriti nella lista dei
A84: Control Log.
A85: E’ obbligatorio indicare per quale sottocategoria si sta partecipando. La partecipazione implica l’uso di
A86: una sola sottocategoria.
A87: L’inserimento nella classifica finale sarà solo per la sottocategoria in cui si partecipa.
A88: Se viene inviato un log comprensivo di collegamenti in vari modi (SSB/CW/PSK), e non viene indicato su
A89: quale sottocategoria si sta per partecipare, d’ufficio viene inserito nella sottocategoria MIXED. Lo stesso
A90: se viene inviato un log solo nei modi SSB o CW viene inserito nella sottocategoria PHONE o CW.
A91: Le stazioni italiane che lo desiderano, potranno inviare il contributo per il Diploma tramite le seguenti
A92: modalità:
A93: - via “POSTEPAY” 4023600645946759 intestata a Mattei Alberto
A94: (c.f. MTTLRT63L22I535Z);
A95: - via “PAYPAL” al seguente indirizzo it9mrm@gmail.com
A96: - BONIFICO BANCARIO: IBAN IT64E0306984620100000004132
A97: c/o INTESA-S.PAOLO filiale di Augusta.
A98: SCADENZA
A99: Le richieste per il diploma dovranno pervenire non oltre il 30. 11. 2015.
A100: INFORMAZIONI
A101: Eventuali informazioni in merito alle stazioni partecipanti ed al diploma possono essere prelevate dal sito
A102: ufficiale dell’A.R.M.I. http://www.assoradiomarinai.it
A103: http://www.assoradiomarinai.it
